Cogmind - Beta 11.1 @@@ ROGUE MODE // 2022.05.06 @ 17:35:27 Player: Azken Zutik Result: Destroyed by B-86 Titan with Hardcell Cannon Performance ------------- Evolutions (7) 3500 Regions Visited (41) 8200 Robots Destroyed (552) 2760 Value Destroyed (21545) 21545 Prototype IDs (66) 1320 Alien Tech Used (6) 1200 Bonus (11511) 11511 TOTAL SCORE: 50036 Bonus ------- High Alert Combat Kills 3073 Follower Combat Kills 4006 Entered Garrisons 800 Used RIF Installer 1000 Aligned with FarCom 300 Met Data Miner 300 Exposed GOLEM Chamber 500 Built Enhanced Grunts 300 Used Core Reset Matrix 3000 Friendly Fire -1768 Cogmind --------- Core Integrity 0/1300 Matter 300/300 Energy 29/100 System Corruption 17% Temperature Cool (0) Movement Core (50) Location -3/Garrison Parts ------- > --- POWER (2) -------- (None) > --- PROPULSION (6) --- (None) > --- UTILITY (9) ------ Graphene Brace > --- WEAPON (4) ------- (None) > --- INVENTORY (5) ---- Sigix Broadsword Peak State ------------ > --- POWER ------------ Matter Drive > --- PROPULSION ------- Heavy Treads Improved Heavy Siege Treads Centrium Heavy Treads > --- UTILITY ---------- Advanced Cooling System Huge Storage Unit Improved Medium Armor Plating Centrium Medium Armor Plating Graphene Brace Improved Hacking Suite Deep Network Scanner Ghost Barrier > --- WEAPON ----------- Hypervelocity Railgun Hypervelocity Railgun Hypervelocity Railgun Hypervelocity Railgun > --- INVENTORY -------- Light Quantum Reactor Medium Treads Advanced Heat Sink High-capacity Storage Unit Large Matter Pod Centrium Medium Armor Plating Damper Plating Advanced Hardlight Generator Quantum Router Advanced Field Recycling Unit Hacking Drone Bay Subatomic Replicator Terrabomb Railgun Railgun Advanced KE Penetrator Advanced KE Penetrator Rocket Array Ripper [Rating: 172] Favorites ----------- Power Antimatter Reactor Engine Improved Deuterium Engine Power Core Reinforced Fission Core Reactor Antimatter Reactor Propulsion Light Treads Treads Light Treads Leg Flexi-carbon Leg Wheel Wheel Utility Huge Storage Unit Device Improved Cooling System Storage Huge Storage Unit Processor Makeshift Salvage Targeting Computer Hackware Deep Network Scanner Protection Hardened Medium Armor Plating Weapon Heavy Battle Rifle Energy Gun Riot Gun Energy Cannon Heavy Disruptor Cannon Ballistic Gun Heavy Battle Rifle Ballistic Cannon Hypervelocity Mass Driver Launcher Rocket Array Special Weapon Remote Datajack Slashing Weapon Mining Claw Special Melee Weapon Datajack Build | -11 -10 -10 -9 -9 -9 -8 -8 -8 -8 -8 -7 -7 -7 -7 -7 -7 -7 -6 -6 -6 -6 -6 -5 -5 -5 -5 -5 -5 -5 -4 -4 -4 -4 -4 -4 -4 -4 -4 -3 -3 -3 ------- Run | Scr Mat Min Mat Min Exi Min Mat Gar Mat Gar Fac Was Fac Low Low Zio Dee Pro Fac Low Low Dat Pro Fac Was Fac Upp Upp War Pro Fac Was Fac Ext Cet Arc Hub Gar Res Qua Gar Slots Evolved 14 | . . . 2 . . . 2 . . . 2 . . . . . . . 2 . . . . 2 . . . . . . 2 . . . . . . . 2 . . Power 1 | . . . . . . . . . . . . . . . . . . . . . . . . . . . . . . . 1 . . . . . . . . . . Propulsion 4 | . . . 1 . . . 1 . . . . . . . . . . . . . . . . 1 . . . . . . . . . . . . . . 1 . . Utility 7 | . . . 1 . . . . . . . 2 . . . . . . . 2 . . . . . . . . . . . 1 . . . . . . . 1 . . Weapon 2 | . . . . . . . 1 . . . . . . . . . . . . . . . . 1 . . . . . . . . . . . . . . . . . Parts Attached 591 | 3 4 5 23 14 28 . 53 5 22 9 5 19 1 . . 22 12 12 42 7 6 11 7 38 13 16 4 17 . 27 4 19 19 45 8 9 . . 9 48 5 Power 47 | . 1 1 1 1 1 . 1 . . 1 . 1 . . . 1 1 . 3 . . 1 . 2 1 . . . . 1 1 . 3 10 2 . . . . 13 . Engine 11 | . 1 . 1 1 1 . . . . . . . . . . 1 1 . 1 . . 1 . 2 . . . . . . . . . 1 . . . . . . . Core 15 | . . 1 . . . . 1 . . 1 . . . . . . . . 2 . . . . . . . . . . . 1 . 2 4 . . . . . 3 . Reactor 21 | . . . . . . . . . . . . 1 . . . . . . . . . . . . 1 . . . . 1 . . 1 5 2 . . . . 10 . Propulsion 128 | 2 . 1 9 . 3 . 26 1 7 3 1 2 . . . 2 2 4 7 2 1 . 3 10 3 1 1 3 . 4 . 3 2 14 2 2 . . 1 6 . Treads 91 | 2 . 1 8 . 3 . 16 1 7 3 1 2 . . . 2 2 3 4 2 1 . . . 2 1 1 3 . 4 . 3 2 6 2 2 . . 1 6 . Leg 26 | . . . . . . . 5 . . . . . . . . . . . 1 . . . 1 10 1 . . . . . . . . 8 . . . . . . . Wheel 11 | . . . 1 . . . 5 . . . . . . . . . . 1 2 . . . 2 . . . . . . . . . . . . . . . . . . Hover . | . . . . . . . . . . . . . . . . . . . . . . . . . . . . . . . . . . . . . . . . . . Flight . | . . . . . . . . . . . . . . . . . . . . . . . . . . . . . . . . . . . . . . . . . . Utility 162 | 1 2 . 6 2 14 . 6 . 6 2 1 6 1 . . 9 5 3 14 5 2 4 . 7 5 6 1 5 . 10 2 8 3 8 1 7 . . 2 8 . Device 80 | 1 . . 3 . 2 . 2 . 4 . . 2 . . . 6 1 2 9 3 2 3 . 4 2 2 . 4 . 8 1 6 . 5 . 4 . . 1 3 . Storage 10 | . 1 . . . 5 . 1 . 1 . . . . . . . . . . . . . . . . 1 . . . . . . . . . . . . . 1 . Processor 8 | . . . . . . . 1 . . . 1 . 1 . . . . 1 1 . . 1 . . . . . . . 1 . . . 1 . . . . . . . Hackware 9 | . . . 1 . . . 1 . . . . 1 . . . . . . . . . . . 2 1 1 . . . . . . 1 . . 1 . . . . . Protection 55 | . 1 . 2 2 7 . 1 . 1 2 . 3 . . . 3 4 . 4 2 . . . 1 2 2 1 1 . 1 1 2 2 2 1 2 . . 1 4 . Artifact . | . . . . . . . . . . . . . . . . . . . . . . . . . . . . . . . . . . . . . . . . . . Weapon 254 | . 1 3 7 11 10 . 20 4 9 3 3 10 . . . 10 4 5 18 . 3 6 4 19 4 9 2 9 . 12 1 8 11 13 3 . . . 6 21 5 Energy Gun 5 | . . . . . . . 1 . . . . . . . . . 2 . . . . . . . . . . . . . . . . . . . . . . 2 . Energy Cannon 2 | . . . . . . . . . . . . . . . . . . . . . . . . . . . . . . . 1 1 . . . . . . . . . Ballistic Gun 140 | . 1 2 6 5 2 . 13 2 6 3 2 6 . . . 6 1 3 11 . . 4 2 13 2 4 1 6 . 2 . 3 6 10 2 . . . 5 11 . Ballistic Cannon 8 | . . . . . . . 4 . . . . . . . . . . . . . . . . . . . . . . . . 2 . 1 1 . . . . . . Launcher 43 | . . 1 1 4 3 . . 2 3 . 1 . . . . 2 1 2 3 . . . 2 1 . . . 2 . 6 . 2 4 . . . . . 1 2 . Special Weapon 15 | . . . . . . . . . . . . . . . . . . . . . 1 2 . 2 1 2 1 1 . 3 . . . 2 . . . . . . . Impact Weapon . | . . . . . . . . . . . . . . . . . . . . . . . . . . . . . . . . . . . . . . . . . . Slashing Weapon 37 | . . . . 2 3 . 2 . . . . 3 . . . 2 . . 3 . 2 . . 3 1 3 . . . 1 . . 1 . . . . . . 6 5 Piercing Weapon . | . . . . . . . . . . . . . . . . . . . . . . . . . . . . . . . . . . . . . . . . . . Special Melee Weapon 4 | . . . . . 2 . . . . . . 1 . . . . . . 1 . . . . . . . . . . . . . . . . . . . . . . Unidentified Prototypes 13 | . . . 3 . . . . . 1 . 1 . . . . . 1 . 2 . . . . . . . . . . . . . . . 3 . . . . 2 . Corrupted Parts 3 | . . . . . . . . . . . . . . . . . . . . . . . . . . . . . . . . . . 1 2 . . . . . . System Corruption 14 | . . . . . . . . . . . . . . . . . . . . . . . . . . . . . . . . . . 3 11 . . . . . . Parts Lost 133 | . 1 2 1 3 5 . 10 . 1 5 1 . . . . 1 5 3 4 1 . . 2 17 . . . 4 . 9 1 1 9 21 . . . . 1 18 7 Power 18 | . . . . . . . 1 . . 1 . . . . . 1 1 . . . . . . 2 . . . . . 1 1 . 4 4 . . . . . 2 . Propulsion 40 | . . 1 1 . 3 . 7 . . 3 . . . . . . . 2 1 1 . . 2 4 . . . . . . . 1 2 5 . . . . . 4 3 Utility 37 | . 1 . . 2 2 . . . 1 . . . . . . . 4 . 2 . . . . 4 . . . 1 . 3 . . 2 5 . . . . 1 6 3 Weapon 38 | . . 1 . 1 . . 2 . . 1 1 . . . . . . 1 1 . . . . 7 . . . 3 . 5 . . 1 7 . . . . . 6 1 Highest Loss Streak 17 | . 1 1 1 2 4 . 5 . 1 5 1 . . . . 1 5 2 2 1 . . 1 6 . . . 2 . 3 1 1 5 11 . . . . 1 17 7 To Critical Strikes 4 | . . . . . 3 . . . . 1 . . . . . . . . . . . . . . . . . . . . . . . . . . . . . . . Average Slot Usage (%) 89 | . 95 99 99 99 92 88 82 100 99 95 91 90 84 84 84 85 89 91 97 99 99 100 94 93 73 87 87 91 94 86 80 85 86 87 83 80 89 89 90 83 36 Engine 3 | . 14 3 5 11 11 11 2 . . . . . . . . 2 7 7 3 6 6 6 6 4 . . . . . . . . . . . . . . . . . Core 1 | . . 10 5 . . . 6 9 9 8 7 1 . . . . . . 2 . . . . . . . . . . . 3 5 4 3 1 . . . . 1 . Reactor 2 | . . . . . . . . . . . . 5 7 7 7 4 . . . . . . . . 2 5 5 5 5 4 2 . . 3 8 10 10 10 9 6 . Treads 21 | . 28 27 31 33 32 33 22 36 36 34 30 21 15 15 15 17 21 19 21 25 26 26 14 3 5 16 16 20 23 23 21 19 18 9 10 10 15 15 19 17 13 Leg 1 | . . . . . . . 5 . . . . . . . . . . . . . . . 1 20 16 . . . . . . . . 10 5 4 . . . . . Device 9 | . 2 . 8 2 6 11 1 9 8 9 7 7 7 7 7 12 2 14 10 11 12 12 13 15 2 12 11 16 17 13 19 20 14 13 10 6 10 10 12 11 8 Storage 7 | . 20 14 11 11 13 11 9 9 9 9 7 7 7 7 7 7 7 7 6 6 6 6 6 5 5 5 5 5 5 5 5 5 5 5 5 5 5 5 4 3 . Processor 4 | . . . . . . . 1 . . . 6 7 8 15 15 9 6 6 12 13 13 14 20 5 . . . . . 3 . . . . . . . . . . . Hackware 3 | . . . . . . . 6 . . . . 3 . . . . . . . . . . . 8 7 9 11 11 11 11 10 10 14 15 15 15 15 15 14 13 8 Protection 7 | . . 14 12 19 6 . 1 9 9 9 7 9 13 7 7 7 20 7 14 14 13 11 6 . 5 10 11 5 5 3 5 3 6 3 4 5 10 10 10 8 . Ballistic Gun 17 | . 14 26 21 16 6 22 15 20 26 24 22 17 23 23 23 21 20 11 19 20 20 8 19 21 17 20 23 22 23 14 10 14 19 16 15 15 15 15 14 17 . Slashing Weapon 1 | . . . . . 13 . . . . . . 3 . . . . . . . . . 6 . . 2 1 . . . . . . . . . . . . . . 3 Naked Turns . | . . . . . . . . . . . . . . . . . . . . . . . . . . . . . . . . . . . . . . . . . . Heaviest Build 281 | 14 33 30 44 50 236 217 281 57 123 120 98 119 119 118 118 133 119 116 133 128 128 130 124 128 157 206 129 132 128 128 158 158 141 147 169 175 175 175 179 176 12 Greatest Support 225 | 40 40 40 69 60 75 75 95 82 84 84 80 140 140 140 140 140 140 110 98 98 96 96 68 100 140 163 163 167 151 153 153 158 160 150 160 188 188 188 216 225 84 Greatest Overweight (x) 26 | . . . 1 . 5 2 26 . 1 1 1 1 . . . 1 1 11 11 1 1 1 7 7 2 1 . 1 . . 1 . 1 3 1 1 . . . 4 3 Average Overweight (x) 1 | . . . . . 1 2 4 . . 1 1 . . . . . . 5 2 1 1 1 6 2 1 . . . . . . . . . . . . . . . . Largest Inventory Capacity 35 | 8 15 15 15 15 35 35 35 15 25 25 25 25 25 25 25 25 25 25 25 25 25 25 25 25 25 25 25 25 25 25 25 25 25 25 25 25 25 25 25 25 5 Average Capacity 24 | 8 11 15 15 15 27 35 32 15 17 25 25 25 25 25 25 25 25 25 25 25 25 25 25 25 25 25 25 25 25 25 25 25 25 25 25 25 25 25 25 24 5 Most Carried 35 | 6 15 15 15 15 35 35 35 15 20 22 25 25 25 25 25 25 25 23 25 25 25 25 25 25 25 25 25 25 24 25 25 25 25 25 25 25 25 25 25 25 5 Average Carried 23 | 4 6 14 14 14 19 34 31 14 15 20 21 24 25 25 24 24 23 21 24 24 24 24 24 23 23 24 25 24 24 24 24 24 24 23 25 24 25 25 23 23 2 Final Capacity 35 | 8 15 15 15 15 35 35 15 15 25 25 25 25 25 25 25 25 25 25 25 25 25 25 25 25 25 25 25 25 25 25 25 25 25 25 25 25 25 25 25 25 5 Final Carried 35 | 4 15 15 15 14 35 35 14 15 20 17 24 25 25 25 25 25 19 23 25 25 25 25 25 25 25 25 25 24 24 24 25 25 21 25 25 25 25 25 25 25 2 Class Distribution -------------------- 35% | Scavenger-Tank 20% | Scavenger-Mutant 11% | Mutant 10% | Scavenger-Gunner 9% | Hauler-Mutant 4% | Hacker-Tank 3% | Hauler-Gunner Dominant Class ---------------- Mutant | -10/Materials Mutant | -10/Mines Mutant | -9/Materials Mutant | -9/Mines Hauler-Mutant | -9/Exiles Hauler-Mutant | -8/Mines Hauler-Gunner | -8/Materials Scavenger-Tank | -8/Garrison Scavenger-Tank | -8/Materials Scavenger-Mutant | -8/Garrison Scavenger-Gunner | -7/Factory Scavenger-Mutant | -7/Waste Scavenger-Tank | -7/Factory Scavenger-Gunner | -7/Lower Caves Scavenger-Gunner | -7/Lower Caves Scavenger-Mutant | -7/Zion Scavenger-Tank | -7/Deep Caves Scavenger-Mutant | -6/Proximity Caves Scavenger-Tank | -6/Factory Scavenger-Tank | -6/Lower Caves Scavenger-Tank | -6/Lower Caves Scavenger-Mutant | -6/Data Miner Scavenger-Tank | -5/Proximity Caves Scavenger-Gunner | -5/Factory Scavenger-Tank | -5/Waste Scavenger-Tank | -5/Factory Scavenger-Tank | -5/Upper Caves Scavenger-Tank | -5/Upper Caves Scavenger-Mutant | -5/Warlord Scavenger-Mutant | -4/Proximity Caves Scavenger-Mutant | -4/Factory Hacker-Tank | -4/Waste Hacker-Tank | -4/Factory Scavenger-Mutant | -4/Extension Scavenger-Tank | -4/Cetus Scavenger-Tank | -4/Archives Scavenger-Tank | -4/Hub_04(d) Scavenger-Tank | -4/Garrison Scavenger-Tank | -3/Research Scavenger-Tank | -3/Quarantine Hacker-Mutant | -3/Garrison Resources | -11 -10 -10 -9 -9 -9 -8 -8 -8 -8 -8 -7 -7 -7 -7 -7 -7 -7 -6 -6 -6 -6 -6 -5 -5 -5 -5 -5 -5 -5 -4 -4 -4 -4 -4 -4 -4 -4 -4 -3 -3 -3 ----------- Run | Scr Mat Min Mat Min Exi Min Mat Gar Mat Gar Fac Was Fac Low Low Zio Dee Pro Fac Low Low Dat Pro Fac Was Fac Upp Upp War Pro Fac Was Fac Ext Cet Arc Hub Gar Res Qua Gar Matter Collected 23413 | 231 16 430 822 408 839 189 1311 131 1241 469 261 680 . 50 . 1877 209 365 1350 634 210 30 213 1758 1173 419 349 768 . 620 56 533 727 1525 79 557 102 84 398 2224 75 Remotely 3356 | 31 11 . . . . . . . . . . . . . . 1574 . 340 786 100 . . . 514 . . . . . . . . . . . . . . . . . Salvage Created 28529 | 72 156 197 1230 343 541 324 2341 373 1895 319 345 1746 . . . 1589 327 296 1758 643 355 30 256 1792 1770 411 66 509 . 563 56 1107 1525 1201 . 397 85 58 182 3457 214 Parts 1466 | 3 3 15 75 20 84 17 124 24 101 12 19 35 . . . 130 11 10 88 41 29 5 17 141 24 30 2 14 . 28 1 2 77 45 . 26 7 4 10 183 9 Haulers Intercepted 15 | . . . 5 . . . 4 . 4 . 1 . . . . . . . 1 . . . . . . . . . . . . . . . . . . . . . . Recyclers Shooed 16 | . . . 2 1 . . 3 . 2 . . . . . . . . . 3 . . . . 1 . . . . . . . . 2 2 . . . . . . . Parts Field Recycled 67 | . . . . . . . . . . . . . . . . 48 . . . . . 5 . . . . . . . . . 14 . . . . . . . . . Retrieved Matter 865 | . . . . . . . . . . . . . . . . 482 . . . . . 46 . . . . . . . . . 337 . . . . . . . . . Parts Self-Destructed 151 | . . . . . . . . . . . . . . 9 1 . . 7 . 41 27 . 12 . . . 18 16 . 20 . . . . . . . . . . . Prevented . | . . . . . . . . . . . . . . . . . . . . . . . . . . . . . . . . . . . . . . . . . . Kills | -11 -10 -10 -9 -9 -9 -8 -8 -8 -8 -8 -7 -7 -7 -7 -7 -7 -7 -6 -6 -6 -6 -6 -5 -5 -5 -5 -5 -5 -5 -4 -4 -4 -4 -4 -4 -4 -4 -4 -3 -3 -3 ------- Run | Scr Mat Min Mat Min Exi Min Mat Gar Mat Gar Fac Was Fac Low Low Zio Dee Pro Fac Low Low Dat Pro Fac Was Fac Upp Upp War Pro Fac Was Fac Ext Cet Arc Hub Gar Res Qua Gar Combat Hostiles Destroyed 434 | . 3 7 17 36 6 8 42 17 30 6 1 6 . . . 13 12 13 19 11 6 . 12 23 6 5 1 9 . 22 1 5 31 17 . . 2 1 2 41 3 Melee 7 | . . . . . 1 . . . . . . 2 . . . . . . . . . . . . 1 . . . . . . . . . . . . . . . 3 Guns 244 | . 3 4 15 5 . 8 17 5 21 6 1 4 . . . 11 7 1 19 11 6 . 3 19 5 5 1 3 . 3 1 . 14 13 . . 1 . 2 30 . Cannons 31 | . . . . . . . 25 . . . . . . . . . . . . . . . . . . . . . . . . . . 4 . . 1 1 . . . AOE 152 | . . 3 2 31 5 . . 12 9 . . . . . . 2 5 12 . . . . 9 4 . . . 6 . 19 . 5 17 . . . . . . 11 . Classes Destroyed 31 | 1 1 1 5 2 2 1 5 1 . 1 1 1 . . . 5 1 . . . . . . . . . . . . . . . . . . . . . . 3 . Worker 26 | . . . 2 . . . 4 . 8 . 1 . . . . . . . 2 . . . . 4 . 2 . . . . . . 1 . . . . . . 2 . Builder 18 | . . . . . . . 2 . 3 . . . . . . . . . . . . . . 2 . 2 . . . . . . 6 . . . . . . 3 . Tunneler 7 | . . . . . . . 3 . . . 1 . . . . . . . . . . . . 1 . 1 . . . . . . 1 . . . . . . . . Hauler 15 | . . . 5 . . . 4 . 4 . 1 . . . . . . . 1 . . . . . . . . . . . . . . . . . . . . . . Recycler 20 | 1 . . 2 . . . 2 . 3 . 2 . . . . . . . 4 . . . . 2 . . . . . . . . 1 1 . . . . . 2 . Carrier 2 | . . . . . . . . . . . . . . . . . . . . . . . . . . . . . . . . . . . . . . . . 2 . Mechanic 6 | . . . . . . . 1 . . . 1 . . . . . . . . . . . . . . . . 1 . . . . 2 . . . . . . 1 . Operator 11 | . . . 2 . . . . . . . . . . . . . . . . . . . . . . . . . . . . . . . . 9 . . . . . Turret 1 | . . . . . 1 . . . . . . . . . . . . . . . . . . . . . . . . . . . . . . . . . . . . Watcher 11 | . . . 1 . . . 4 . 2 . . . . . . . . . . . . . . . . 1 . . . . . . 1 . . . . . . 2 . Swarmer 97 | . . 3 . 10 . 3 4 7 . . . . . . . . . 7 4 3 4 . 10 4 . 2 . 1 . 13 . . 14 3 . . 1 . . 4 . Grunt 154 | . 3 4 12 6 . 4 29 7 22 . . . . . . . . 4 4 7 . . 1 5 . . 1 5 . 4 . . 13 5 . . 1 1 . 13 3 Brawler 10 | . . . . . . 1 2 1 . . . . . . . . . . 1 . . . . . . . . 1 . 1 . . . 1 . . . . . 2 . Duelist 15 | . . . . 1 . . 1 . 4 2 . . . . . . . 1 . . . . . . . . . 1 . 1 . . . 1 . . . . . 3 . Protector 2 | . . . . . . . 1 . 1 . . . . . . . . . . . . . . . . . . . . . . . . . . . . . . . . Researcher 2 | . . . . . . . . . . . . . . . . . . . . . . . . . . . . . . . . . . . . . . . . 2 . Sentry 36 | . . . 5 . . . 4 . 3 . . . . . . . . 1 5 . . . 1 1 . 2 . . . 1 1 . 2 4 . . . . 1 5 . Specialist 4 | . . . . . . . . . . 2 . . . . . . . . . . . . . 2 . . . . . . . . . . . . . . . . . Hunter 23 | . . . . . . . . 2 . 2 . . . . . . . . 2 . 2 . . 4 . . . . . 2 . . 2 2 . . . . 1 4 . Programmer 22 | . . . . . . . . . . . 1 . . . . . . . 3 1 . . . 7 . 1 . . . . . . . . . . . . . 9 . Heavy 1 | . . . . . . . 1 . . . . . . . . . . . . . . . . . . . . . . . . . . . . . . . . . . Behemoth 1 | . . . . . . . . . . . . . . . . . . . . . . . . . . . . 1 . . . . . . . . . . . . . Compactor 17 | . . . . . . . . . . . . 6 . . . . . . . . . . . . 6 . . . . . . 5 . . . . . . . . . Enhanced Grunt 1 | . . . . . . . . . . . . . . . . . . . . . . . . . . . . . . . . . . . . . . . . 1 . Alpha 7 1 | . . . . . . . . . . . . . . . . . . . . . . . . . . . . . . . . . . . . . . . . 1 . Zionite 55 | . . . . . 8 . . . . . . . . . . 47 . . . . . . . . . . . . . . . . . . . . . . . . . Z-Light 6 | . . . . . . . . . . . . . . . . . 6 . . . . . . . . . . . . . . . . . . . . . . . . Packrat 1 | . . . . . . . . . . . . . . . . . . . . . . . . . . . . 1 . . . . . . . . . . . . . Tinkerer 5 | . . . . . . . . . . . . . . . . 4 . . . . 1 . . . . . . . . . . . . . . . . . . . . Assembled 30 | . . . . 19 5 . . . . . . . . . . . 6 . . . . . . . . . . . . . . . . . . . . . . . . Thug 3 | . . . . . . . . . . . . . . . . 2 . . . . . . . . . . . . . . . . . 1 . . . . . . . Savage 2 | . . . . . . . . . . . . . . . . 1 . . . . . . . . . . . . . . . . . . . 1 . . . . . Butcher 1 | . . . . . . . . . . . . . . . . 1 . . . . . . . . . . . . . . . . . . . . . . . . . Martyr 1 | . . . . . . . . . . . . . . . . 1 . . . . . . . . . . . . . . . . . . . . . . . . . Marauder 2 | . . . . . . . . . . . . . . . . 2 . . . . . . . . . . . . . . . . . . . . . . . . . Fireman 1 | . . . . . . . . . . . . . . . . 1 . . . . . . . . . . . . . . . . . . . . . . . . . Mutant 5 | . . . . . . . . . . . . . . . . 5 . . . . . . . . . . . . . . . . . . . . . . . . . Best Kill Streak 19 | 1 3 3 4 19 6 4 6 8 17 2 3 2 . . . 10 6 4 4 3 4 . 5 8 1 4 1 4 . 5 1 1 14 8 . 3 1 1 1 13 2 Combat Bots Only 19 | . 3 3 3 19 5 4 5 8 12 2 1 2 . . . 2 6 4 4 3 4 . 5 4 1 3 1 4 . 5 1 1 9 8 . . 1 1 1 7 2 Max Kills in Single Turn 13 | 1 1 3 2 3 2 2 3 2 3 1 1 1 . . . 2 2 3 1 1 2 1 3 3 1 3 1 2 . 5 1 1 5 1 . 1 1 1 1 13 1 Gunslinging 1 | . . . . 1 . 1 . . 1 . . . . . . 1 . . . . . . . . . 1 . . . . . . 1 . . . . . . . . Exploded 7 | . . 3 2 3 2 . . 2 2 . . . . . . 1 2 3 . . . . 3 2 . . . 2 . 5 . 1 4 . . . . . . 7 . Melee 1 | . . . . . 1 . . . . . . 1 . . . . . . . . . . . . 1 . . . . . . . . . . . . . . . 1 Uniques/NPCs Destroyed 6 | . . . . . 4 . . . . . . . . . . 1 . . . . . 1 . . . . . . . . . . . . . . . . . . . 8R-AWN (-9/Exiles) EX-BIN (-9/Exiles) EX-HEX (-9/Exiles) EX-DEC (-9/Exiles) Imprinter (-7/Zion) Data Miner (-6/Data Miner) Combat | -11 -10 -10 -9 -9 -9 -8 -8 -8 -8 -8 -7 -7 -7 -7 -7 -7 -7 -6 -6 -6 -6 -6 -5 -5 -5 -5 -5 -5 -5 -4 -4 -4 -4 -4 -4 -4 -4 -4 -3 -3 -3 -------- Run | Scr Mat Min Mat Min Exi Min Mat Gar Mat Gar Fac Was Fac Low Low Zio Dee Pro Fac Low Low Dat Pro Fac Was Fac Upp Upp War Pro Fac Was Fac Ext Cet Arc Hub Gar Res Qua Gar Damage Taken 38476 | . 319 381 393 971 1205 404 2746 170 1371 822 173 . . . . 1465 2229 427 1198 566 78 . 655 2545 . 889 250 686 . 2320 190 397 2842 3147 43 . 151 41 696 6494 2212 Core 3831 | . 44 52 46 62 53 78 119 42 47 127 12 . . . . 106 359 6 85 29 . . 90 232 . 90 42 54 . 241 . 21 182 302 . . . . 27 189 1094 Absorbed by Shields 2092 | . . . 132 148 . . 136 . 184 . . . . . . . . . . . 29 . 239 192 . . . 55 . . . . . 21 12 . 112 32 280 520 . Reduced by Siege Mode 103 | . . . . . . . . . . . . . . . . . . . . . . . . . . . . 20 . . . . 83 . . . . . . . . Redirected to Shielding 473 | . . . . . . . . . . 18 2 . . . . . 351 . . . . . . . . . . . . . . . . 60 . . . . 42 . . Regen/Repaired (Parts) 332 | . . . 11 . . . . . . . . . . . . . . . . . . . . . . . . . . . . . . . . . . . . 8 313 Core Remaining (%) 54 | 100 . 61 . . . 40 . . . 39 . . . . . . . 31 . . . . 76 . . . . . . 34 . . . . . . . 56 . . . Volleys Fired 1490 | 1 16 19 81 35 73 20 82 22 107 42 14 31 . . . 320 19 9 73 28 9 16 21 64 36 25 3 25 . 35 7 9 49 62 . 41 3 1 12 80 . Largest 4 | 2 2 2 2 2 1 2 3 3 3 3 3 3 . . . 3 3 3 3 3 3 1 3 4 4 4 4 4 . 4 2 3 4 4 . 2 4 4 4 4 . Hottest 166 | 70 70 40 46 46 33 53 76 108 74 73 73 66 . . . 99 133 116 99 99 99 33 99 132 106 111 111 122 . 122 68 113 126 164 . 70 166 166 166 160 . Shots Fired 3757 | 2 32 37 160 50 73 42 324 40 297 120 42 93 . . . 566 49 11 205 86 30 16 51 237 128 80 12 62 . 57 14 21 167 204 1 84 13 3 45 303 . Gun 3463 | 2 32 36 158 30 50 42 231 30 286 120 42 93 . . . 558 46 3 205 86 30 13 45 232 122 78 11 50 . 44 14 6 159 177 . 82 10 2 37 301 . Cannon 125 | . . . . . . . 93 . . . . . . . . . . . . . . . . . . . . . . . . . . 18 1 2 3 1 7 . . Launcher 141 | . . 1 2 20 23 . . 10 11 . . . . . . 8 3 8 . . . . 6 4 . . . 8 . 11 . 15 8 . . . . . 1 2 . Special 28 | . . . . . . . . . . . . . . . . . . . . . . 3 . 1 6 2 1 4 . 2 . . . 9 . . . . . . . Kinetic 3553 | 1 16 36 158 30 50 42 324 25 286 120 42 93 . . . 558 34 2 205 86 30 13 45 232 122 78 11 50 . 44 14 6 159 195 1 84 13 3 44 301 . Thermal 23 | 1 16 . . . . . . 5 . . . . . . . . . . . . . . . . . . . . . . . . . . . . . . . 1 . Explosive 140 | . . 1 2 20 23 . . 10 11 . . . . . . 8 3 8 . . . . 6 4 . . . 8 . 11 . 15 8 . . . . . 1 1 . Electromagnetic 13 | . . . . . . . . . . . . . . . . . 12 1 . . . . . . . . . . . . . . . . . . . . . . . Robot Hit Streak 41 | 2 12 8 16 6 7 11 41 16 12 6 7 23 . . . 12 8 5 11 11 9 7 9 14 30 38 4 18 . 17 8 12 41 16 10 8 2 3 3 26 . Robot Miss Streak 10 | . 2 2 4 3 3 2 4 2 3 5 5 1 . . . 6 5 4 6 4 2 1 2 5 3 1 1 2 . 2 1 1 9 10 . 4 3 1 3 3 . Penetration Max 2 | . . . . . 1 1 2 . 1 1 . . . . . . . . . 1 1 . 1 2 . 1 . 1 . 1 . . 2 2 . 1 . . . 1 . Secondary Targets 53 | . 2 1 . 1 . 2 4 . 5 1 . . . . . 13 . . 1 . . . 2 2 1 2 1 1 . . . . 4 4 . . . . . 6 . Max Gunslinging Chain 1 | . 1 1 . 1 . 1 1 . 1 1 . . . . . 1 . . 1 . . . 1 1 1 1 1 1 . . . . 1 1 . . . . . 1 . Autonomous 94 | . . . . . . . 94 . . . . . . . . . . . . . . . . . . . . . . . . . . . . . . . . . . Shots Hit Robots 2519 | 2 27 29 113 33 83 29 212 18 194 64 25 141 . . . 205 29 7 144 56 13 13 37 143 172 61 8 49 . 36 12 14 116 144 1 52 6 2 20 199 10 Core Hits 1334 | 2 9 17 43 51 47 14 91 32 93 13 10 25 . . . 108 42 43 74 29 10 5 24 72 23 21 3 56 . 51 3 15 110 64 . 21 4 1 10 95 3 Critical Kills 122 | . . . . . 5 1 9 . 3 . 1 . . . . 5 2 . 5 10 7 . 1 16 . . 1 1 . 1 . . . 5 . 6 1 1 2 39 . Critical Parts Destroyed 165 | . . . 1 . 13 9 13 1 2 1 1 1 . . . 12 . . 7 11 3 1 5 22 1 1 . 1 . 1 . . 2 9 . 5 1 . 3 38 . Critical Strikes 316 | . 1 . 1 . 19 10 25 2 5 1 2 7 . . . 17 2 . 12 21 10 1 6 38 6 1 1 3 . 2 . . 2 15 . 11 2 1 8 83 1 Burn 2 | . 1 . . . . . . 1 . . . . . . . . . . . . . . . . . . . . . . . . . . . . . . . . . Destroy 304 | . . . 1 . 18 10 22 1 5 1 2 5 . . . 17 2 . 12 21 10 1 6 38 3 1 1 3 . 2 . . 2 15 . 11 2 1 8 83 . Blast 3 | . . . . . . . 3 . . . . . . . . . . . . . . . . . . . . . . . . . . . . . . . . . . Sever 7 | . . . . . 1 . . . . . . 2 . . . . . . . . . . . . 3 . . . . . . . . . . . . . . . 1 Melee Attacks 281 | . . . . 5 68 . 2 . . . . 63 . . . 36 . . 4 . . . . 5 65 5 . . . 1 . . 1 . . . . . . 10 16 Impact . | . . . . . . . . . . . . . . . . . . . . . . . . . . . . . . . . . . . . . . . . . . Slashing 270 | . . . . 5 64 . 2 . . . . 57 . . . 36 . . 3 . . . . 5 65 5 . . . 1 . . 1 . . . . . . 10 16 Piercing . | . . . . . . . . . . . . . . . . . . . . . . . . . . . . . . . . . . . . . . . . . . Sneak Attacks 131 | . . . . . 4 . 1 . . . . 57 . . . 1 . . 1 . . . . . 65 1 . . . . . . . . . . . . . . 1 Combat Hostiles 123 | . . . . . . . . . . . . 57 . . . . . . . . . . . . 65 . . . . . . . . . . . . . . . 1 Follow-up Attacks 15 | . . . . . 6 . . . . . . 9 . . . . . . . . . . . . . . . . . . . . . . . . . . . . . Damage Inflicted 79168 | 18 278 479 1927 2436 2938 533 7945 1285 4690 927 486 2803 . . . 5552 1042 1153 2742 389 101 70 1153 2285 4216 1277 125 2026 . 2444 357 2752 5239 2702 14 1539 179 41 300 13883 842 Guns 36314 | 18 278 322 1790 302 572 509 2062 160 3011 927 410 1026 . . . 4424 443 42 2701 389 101 70 233 1818 1921 1222 125 986 . 590 357 140 2869 2479 . 1539 150 18 219 2091 . Cannons 6113 | . . . . . . . 5766 . . . . . . . . . . . . . . . . . . . . . . . . . . 223 14 . 29 23 58 . . Explosions 29765 | . . 113 127 2101 787 . . 1125 1658 . 76 . . . . 1060 599 1111 . . . . 920 467 . . . 1040 . 1854 . 2612 2300 . . . . . 23 11792 . Melee 6670 | . . . . . 1579 . 68 . . . . 1777 . . . 68 . . . . . . . . 2295 55 . . . . . . . . . . . . . . 828 Ramming 306 | . . 44 10 33 . 24 49 . 21 . . . . . . . . . 41 . . . . . . . . . . . . . 70 . . . . . . . 14 Kinetic 42095 | 6 104 322 1790 302 572 509 7828 120 3011 927 410 1026 . . . 4424 357 22 2701 389 101 70 233 1818 1921 1222 125 986 . 590 357 140 2869 2702 14 1539 179 41 277 2091 . Thermal 11878 | 12 174 . . . . . . 40 . . . . . . . . . . . . . . . . . . . . . . . . 141 . . . . . . 11511 . Explosive 17996 | . . 113 127 2101 787 . . 1125 1658 . 76 . . . . 1060 599 1111 . . . . 920 467 . . . 1040 . 1854 . 2612 2116 . . . . . 23 207 . Electromagnetic 223 | . . . . . . . . . . . . . . . . . 86 20 . . . . . . . . . . . . . . 43 . . . . . . 74 . Impact . | . . . . . . . . . . . . . . . . . . . . . . . . . . . . . . . . . . . . . . . . . . Slashing 6670 | . . . . . 1579 . 68 . . . . 1777 . . . 68 . . . . . . . . 2295 55 . . . . . . . . . . . . . . 828 Piercing . | . . . . . . . . . . . . . . . . . . . . . . . . . . . . . . . . . . . . . . . . . . Highest Corruption 26 | . . . 1 1 1 1 1 1 1 1 . . . . . 4 . . 4 5 5 5 5 12 18 20 20 20 20 21 . . 2 15 26 26 7 7 . 17 17 Average Corruption 6 | . . . 1 1 1 1 1 1 1 1 . . . . . 3 . . 3 4 5 5 5 6 14 18 20 20 20 20 . . 1 7 21 10 7 7 . 5 17 Corruption Purged 23 | . . . . . . . . . . . . . . . . 4 . . . . . . . . . . . . . . . . . . . 19 . . . . . Corruption Blocked . | . . . . . . . . . . . . . . . . . . . . . . . . . . . . . . . . . . . . . . . . . . Effects 761 | . . . 4 6 25 14 . 5 11 4 . . . . . 15 . . 11 70 43 12 30 24 90 27 71 45 3 55 . . 6 49 19 73 6 6 . 19 18 Message Errors 182 | . . . . 4 8 1 . 1 1 . . . . . . 4 . . 4 17 7 . 9 4 26 7 20 10 2 11 . . . 13 2 19 1 2 . 4 5 Matter Fused 169 | . . . . 1 5 3 . . 3 1 . . . . . 5 . . 1 18 10 3 3 4 18 6 14 11 1 13 . . 1 10 6 22 . 1 . 7 2 Heat Flow Errors 85 | . . . 1 1 4 2 . 1 . . . . . . . . . . . 7 5 2 5 5 8 4 10 4 . 7 . . . 7 1 6 1 . . 2 2 Energy Discharges 91 | . . . 1 . 4 3 . . . . . . . . . 1 . . 2 7 5 2 4 3 13 2 8 8 . 4 . . . 6 2 9 . 1 . 3 3 Parts Rejected 3 | . . . . . . . . . . . . . . . . . . . . 1 . . . 1 . . 1 . . . . . . . . . . . . . . Data Loss (minor) 103 | . . . 1 . 2 2 . . 2 2 . . . . . 4 . . 2 11 6 5 5 1 9 4 9 7 . 9 . . 2 6 4 5 1 . . . 4 Data Loss (major) 45 | . . . 1 . 2 1 . 1 2 . . . . . . . . . . 4 2 . . 2 8 . 5 1 . 3 . . 1 4 2 5 . 1 . . . Misfires 39 | . . . . . . 2 . 2 . 1 . . . . . 1 . . 1 3 5 . 1 1 3 4 3 2 . 3 . . . . 1 4 2 . . . . Alerts 17 | . . . . . . . . . 1 . . . . . . . . . . 1 1 . 2 . 4 . 1 1 . 3 . . . . . 1 . . . 1 1 Misdirections 3 | . . . . . . . . . . . . . . . . . . . . . . . . . . . . . . . . . . 1 1 . . . . . 1 Weapon Failures 24 | . . . . . . . . . 2 . . . . . . . . . 1 1 2 . 1 3 1 . . 1 . 2 . . 2 2 . 2 1 1 . 2 . Overload Shots . | . . . . . . . . . . . . . . . . . . . . . . . . . . . . . . . . . . . . . . . . . . Overflow Damage 2854 | . . . . 60 11 . 711 77 53 . . . . . . . 21 3 . . . . 55 98 . . . . . 78 . . 123 . . . . . . 1553 11 Projectiles 693 | . . . . . . . 693 . . . . . . . . . . . . . . . . . . . . . . . . . . . . . . . . . . Explosions 2109 | . . . . 60 11 . . 77 53 . . . . . . . 21 3 . . . . 55 98 . . . . . 78 . . 100 . . . . . . 1553 . Melee 52 | . . . . . . . 18 . . . . . . . . . . . . . . . . . . . . . . . . . 23 . . . . . . . 11 Knockbacks 23 | . . . . . . . 19 . . . . . . . . . . . . . . . . . . . . . . . . . 1 2 . . 1 . . . . Impact 2 | . . . . . . . 1 . . . . . . . . . . . . . . . . . . . . . . . . . 1 . . . . . . . . Kinetic 16 | . . . . . . . 13 . . . . . . . . . . . . . . . . . . . . . . . . . . 2 . . 1 . . . . Secondary 5 | . . . . . . . 5 . . . . . . . . . . . . . . . . . . . . . . . . . . . . . . . . . . Self-Inflicted Damage 2172 | . . 12 . 93 18 . . . 15 . . . . . . 28 . 47 . . . . 30 . . . . . . 228 . 348 336 . . . . . . 1010 7 Shots 47 | . . 1 . 2 1 . . . 1 . . . . . . 3 . 2 . . . . 1 . . . . . . 8 . 12 14 . . . . . . 2 . Rammed 35 | . . 7 2 7 . 3 6 . 3 . . . . . . . . . 1 . . . . . . . . . . . . . 5 . . . . . . . 1 Targets Rammed 40 | . . 7 3 7 . 3 6 . 5 . . . . . . . . . 2 . . . . 1 . . . . . . . . 5 . . . . . . . 1 Kicked 1 | . . . . . . . . . . . . . . . . . . . . . . . . 1 . . . . . . . . . . . . . . . . . Crushed 4 | . . . 1 . . . . . 2 . . . . . . . . . 1 . . . . . . . . . . . . . . . . . . . . . . Highest Temperature 505 | 30 380 32 159 207 255 217 336 139 322 12 6 . . . . 13 436 . 2 172 203 244 200 239 411 166 255 223 . 245 . . 57 263 244 197 269 81 505 89 141 Average Temperature 80 | 19 209 11 25 53 90 46 76 37 99 4 6 . . . . 5 126 . 2 66 75 117 70 92 143 72 107 113 . 97 . . 13 83 110 38 109 44 198 57 80 Received Heat Transfer 6311 | . 195 219 190 191 40 243 899 72 719 . 54 . . . . 260 362 90 207 120 . . 142 216 . 90 75 147 . 90 36 . 399 346 . . 16 . 49 577 267 Effects 23 | . 2 . . . . . 3 . 5 . . . . . . . 3 . . . . . . . 1 . . . . . . . . 3 . . . . 6 . . Shutdowns 6 | . 1 . . . . . 1 . . . . . . . . . 1 . . . . . . . . . . . . . . . . . . . . . 3 . . Energy Bleed 2 | . . . . . . . 1 . 1 . . . . . . . . . . . . . . . . . . . . . . . . . . . . . . . . Interference 7 | . . . . . . . . . 4 . . . . . . . . . . . . . . . . . . . . . . . . 3 . . . . . . . Matter Decay 5 | . . . . . . . 1 . . . . . . . . . 2 . . . . . . . . . . . . . . . . . . . . . 2 . . Short Circuit 1 | . 1 . . . . . . . . . . . . . . . . . . . . . . . . . . . . . . . . . . . . . . . . Damage (minor) 2 | . . . . . . . . . . . . . . . . . . . . . . . . . 1 . . . . . . . . . . . . . 1 . . Siege Activations 5 | . . . . . . . . . . . . . . . . . . . . . . . . . . 1 . 1 . . . . 3 . . . . . . . . Total Turns 99 | . . . . . . . . . . . . . . . . . . . . . . . . . . 15 . 15 . . . . 69 . . . . . . . . Longest Duration 38 | . . . . . . . . . . . . . . . . . . . . . . . . . . 15 . 15 . . . . 38 . . . . . . . . Robots Corrupted . | . . . . . . . . . . . . . . . . . . . . . . . . . . . . . . . . . . . . . . . . . . Combat Hostiles . | . . . . . . . . . . . . . . . . . . . . . . . . . . . . . . . . . . . . . . . . . . Parts Fried . | . . . . . . . . . . . . . . . . . . . . . . . . . . . . . . . . . . . . . . . . . . Impact Corruptions 3 | . . . . . . . 2 . . . . . . . . . . . . . . . . . . . . . . . . . 1 . . . . . . . . Robots Melted . | . . . . . . . . . . . . . . . . . . . . . . . . . . . . . . . . . . . . . . . . . . Combat Hostiles . | . . . . . . . . . . . . . . . . . . . . . . . . . . . . . . . . . . . . . . . . . . Parts Melted 7 | . 1 . . . . . . 2 . . . . . . . 2 . . 2 . . . . . . . . . . . . . . . . . . . . . . Heat Transferred 1034 | 37 592 . . . . . . 185 . . . . . . . . . . . . . . . . . . . . . . . . 100 . . . . . . 120 . Parts Sabotaged 1 | . . . . . . . . . . . . . . . . . . . . . . . . . . . . . . . . . . . . . . . . 1 . Parts Stolen . | . . . . . . . . . . . . . . . . . . . . . . . . . . . . . . . . . . . . . . . . . . Parts Stripped . | . . . . . . . . . . . . . . . . . . . . . . . . . . . . . . . . . . . . . . . . . . Power Chain Reactions . | . . . . . . . . . . . . . . . . . . . . . . . . . . . . . . . . . . . . . . . . . . Missiles Intercepted . | . . . . . . . . . . . . . . . . . . . . . . . . . . . . . . . . . . . . . . . . . . Alert | -11 -10 -10 -9 -9 -9 -8 -8 -8 -8 -8 -7 -7 -7 -7 -7 -7 -7 -6 -6 -6 -6 -6 -5 -5 -5 -5 -5 -5 -5 -4 -4 -4 -4 -4 -4 -4 -4 -4 -3 -3 -3 ------- Run | Scr Mat Min Mat Min Exi Min Mat Gar Mat Gar Fac Was Fac Low Low Zio Dee Pro Fac Low Low Dat Pro Fac Was Fac Upp Upp War Pro Fac Was Fac Ext Cet Arc Hub Gar Res Qua Gar Peak Influence 1613 | 5 90 195 214 392 . 241 799 992 1050 782 405 53 . . . . . . 206 . . . . 352 121 260 . . . . 65 154 1613 1066 878 572 522 446 440 1305 1200 Initial 978 | . 3 34 . 83 . . 5 519 483 682 405 53 . . . . . . 21 . . . . . 121 . . . . . 11 22 . 790 560 271 . 365 250 247 978 Average 272 | 4 67 50 92 255 . 35 356 778 682 761 295 12 . . . . . . 72 . . . . 142 20 86 . . . . 32 21 719 744 653 250 306 411 322 526 1073 Maximum Alert Level 5 | . . . 1 1 . 1 3 3 3 3 2 . . . . . . . 1 . . . . 1 . 1 . . . . . . 5 3 3 2 2 2 2 4 4 Low Security (%) 54 | 100 100 100 98 21 . 98 23 . . . 11 100 100 . . . . . 97 . . . . 65 100 98 . . . . 100 100 12 . . 45 22 . . . . Level 1 14 | . . . 1 78 . 1 36 . . . 44 . . . . . . . 2 . . . . 34 . 1 . . . . . . 4 . . 23 51 31 85 4 . Level 2 19 | . . . . . . . 31 46 64 9 44 . . . . . . . . . . . . . . . . . . . . . 42 29 80 31 26 68 14 91 . Level 3 10 | . . . . . . . 8 53 35 90 . . . . . . . . . . . . . . . . . . . . . . 20 70 19 . . . . . 61 Level 4 . | . . . . . . . . . . . . . . . . . . . . . . . . . . . . . . . . . 12 . . . . . . 4 38 Level 5 . | . . . . . . . . . . . . . . . . . . . . . . . . . . . . . . . . . 6 . . . . . . . . High Security . | . . . . . . . . . . . . . . . . . . . . . . . . . . . . . . . . . . . . . . . . . . Max Security . | . . . . . . . . . . . . . . . . . . . . . . . . . . . . . . . . . . . . . . . . . . Squads Dispatched 68 | . . . 5 1 . . 6 . 6 . 2 . . . . . . . 5 . . . . 7 . 6 . 1 . . . . 10 3 . . 2 . 1 13 . Investigation 4 | . . . . . . . 1 . . . . . . . . . . . 1 . . . . 2 . . . . . . . . . . . . . . . . . Extermination 11 | . . . . . . . . . . . 1 . . . . . . . 3 . . . . 2 . 1 . . . . . . . . . . . . . 4 . Reinforcement 30 | . . . 5 1 . . 3 . 2 . 1 . . . . . . . 1 . . . . 3 . 2 . . . . . . 4 1 . . 1 . 1 5 . Assault 11 | . . . . . . . 2 . 1 . . . . . . . . . . . . . . . . . . 1 . . . . 2 2 . . . . . 3 . Garrison 12 | . . . . . . . . . 3 . . . . . . . . . . . . . . . . 3 . . . . . . 4 . . . 1 . . 1 . Intercept . | . . . . . . . . . . . . . . . . . . . . . . . . . . . . . . . . . . . . . . . . . . Searches Triggered . | . . . . . . . . . . . . . . . . . . . . . . . . . . . . . . . . . . . . . . . . . . Construction Impeded 11 | . . . . 1 . . . . 1 . . . . . . . . . . . . . . 1 . 1 . . . . . . 4 1 . . 1 . . 1 . Haulers Reinforced 1 | . . . . . . . . . . . 1 . . . . . . . . . . . . . . . . . . . . . . . . . . . . . . Active Scanning Responses . | . . . . . . . . . . . . . . . . . . . . . . . . . . . . . . . . . . . . . . . . . . Cargo Convoy Interrupts . | . . . . . . . . . . . . . . . . . . . . . . . . . . . . . . . . . . . . . . . . . . Stealth | -11 -10 -10 -9 -9 -9 -8 -8 -8 -8 -8 -7 -7 -7 -7 -7 -7 -7 -6 -6 -6 -6 -6 -5 -5 -5 -5 -5 -5 -5 -4 -4 -4 -4 -4 -4 -4 -4 -4 -3 -3 -3 --------- Run | Scr Mat Min Mat Min Exi Min Mat Gar Mat Gar Fac Was Fac Low Low Zio Dee Pro Fac Low Low Dat Pro Fac Was Fac Upp Upp War Pro Fac Was Fac Ext Cet Arc Hub Gar Res Qua Gar Distress Signals 17 | . 1 . 3 . . . 3 . 6 . . . . . . . . . . . . . . . . . . . . . . . 1 2 1 . . . . . . Communications Jammed . | . . . . . . . . . . . . . . . . . . . . . . . . . . . . . . . . . . . . . . . . . . Distress Signals . | . . . . . . . . . . . . . . . . . . . . . . . . . . . . . . . . . . . . . . . . . . Times Spotted 745 | . 4 8 29 40 43 12 60 14 49 6 5 6 . 3 1 58 11 11 25 15 6 . 12 30 5 16 6 19 . 25 2 6 44 43 7 24 10 4 6 51 29 Peak Tracking Total 19 | . 4 3 5 8 9 4 6 8 7 3 3 2 . 1 1 4 5 4 4 4 4 . 5 5 2 4 5 5 . 7 1 2 5 11 5 2 6 4 3 8 19 Tactical Retreats 55 | . . . . 1 5 10 7 . 3 . . . . . . 6 1 . 1 7 . . . 3 . 1 . . . 1 . . 1 5 . . . 1 . 1 1 Traps | -11 -10 -10 -9 -9 -9 -8 -8 -8 -8 -8 -7 -7 -7 -7 -7 -7 -7 -6 -6 -6 -6 -6 -5 -5 -5 -5 -5 -5 -5 -4 -4 -4 -4 -4 -4 -4 -4 -4 -3 -3 -3 ------- Run | Scr Mat Min Mat Min Exi Min Mat Gar Mat Gar Fac Was Fac Low Low Zio Dee Pro Fac Low Low Dat Pro Fac Was Fac Upp Upp War Pro Fac Was Fac Ext Cet Arc Hub Gar Res Qua Gar Traps Triggered 15 | . . . 1 . . . . . . 2 1 . . . . . . . 2 . . . . 1 . 1 . . . . 1 . 2 2 . . . . 1 1 . Indirectly . | . . . . . . . . . . . . . . . . . . . . . . . . . . . . . . . . . . . . . . . . . . Trap Hack Attempts . | . . . . . . . . . . . . . . . . . . . . . . . . . . . . . . . . . . . . . . . . . . Triggered . | . . . . . . . . . . . . . . . . . . . . . . . . . . . . . . . . . . . . . . . . . . Disarmed . | . . . . . . . . . . . . . . . . . . . . . . . . . . . . . . . . . . . . . . . . . . Reprogrammed . | . . . . . . . . . . . . . . . . . . . . . . . . . . . . . . . . . . . . . . . . . . Reused . | . . . . . . . . . . . . . . . . . . . . . . . . . . . . . . . . . . . . . . . . . . Traps Extracted . | . . . . . . . . . . . . . . . . . . . . . . . . . . . . . . . . . . . . . . . . . . Installed . | . . . . . . . . . . . . . . . . . . . . . . . . . . . . . . . . . . . . . . . . . . Triggered 1 | . . . . . . . . . . . . . . . 1 . . . . . . . . . . . . . . . . . . . . . . . . . . Exploded 3 | . . . . . 3 . . . . . . . . . . . . . . . . . . . . . . . . . . . . . . . . . . . . Machines | -11 -10 -10 -9 -9 -9 -8 -8 -8 -8 -8 -7 -7 -7 -7 -7 -7 -7 -6 -6 -6 -6 -6 -5 -5 -5 -5 -5 -5 -5 -4 -4 -4 -4 -4 -4 -4 -4 -4 -3 -3 -3 ---------- Run | Scr Mat Min Mat Min Exi Min Mat Gar Mat Gar Fac Was Fac Low Low Zio Dee Pro Fac Low Low Dat Pro Fac Was Fac Upp Upp War Pro Fac Was Fac Ext Cet Arc Hub Gar Res Qua Gar Machines Disabled 78 | . . . . . 13 1 5 2 2 . 3 . . . . 8 1 . 2 . . . . 5 . 1 . 1 . 1 . . 9 1 . 3 1 . . 19 . Max in Single Turn 8 | . . . . . 2 1 1 1 1 . 2 . . . . 1 1 . 1 . . . . 4 . 1 . 1 . . . . 3 1 . 1 . . . 8 . Garrison Access 2 | . . . . . . . . . . . . . . . . . . . . . . . . . . . . . . . 1 . 1 . . . . . . . . Garrison Relay 2 | . . . . . . . . 2 . . . . . . . . . . . . . . . . . . . . . . . . . . . . . . . . . Machines Sabotaged . | . . . . . . . . . . . . . . . . . . . . . . . . . . . . . . . . . . . . . . . . . . Garrisons Compromised . | . . . . . . . . . . . . . . . . . . . . . . . . . . . . . . . . . . . . . . . . . . Overloaded Fab Kills . | . . . . . . . . . . . . . . . . . . . . . . . . . . . . . . . . . . . . . . . . . . Hacking | -11 -10 -10 -9 -9 -9 -8 -8 -8 -8 -8 -7 -7 -7 -7 -7 -7 -7 -6 -6 -6 -6 -6 -5 -5 -5 -5 -5 -5 -5 -4 -4 -4 -4 -4 -4 -4 -4 -4 -3 -3 -3 --------- Run | Scr Mat Min Mat Min Exi Min Mat Gar Mat Gar Fac Was Fac Low Low Zio Dee Pro Fac Low Low Dat Pro Fac Was Fac Upp Upp War Pro Fac Was Fac Ext Cet Arc Hub Gar Res Qua Gar Machines Accessed 49 | . 1 . 3 . 2 . 9 . 4 . . . . 1 2 . . . 1 2 . 4 . 3 . 1 . . . . 2 . 2 4 1 . 3 . . 4 . Terminals 29 | . 1 . 2 . . . 7 . 3 . . . . . . . . . 1 1 . . . 1 . 1 . . . . . . 2 4 1 . 2 . . 3 . Fabricators 2 | . . . . . . . . . . . . . . . . . . . . . . . . 2 . . . . . . . . . . . . . . . . . Repair Stations 1 | . . . 1 . . . . . . . . . . . . . . . . . . . . . . . . . . . . . . . . . . . . . . Recycling Units 1 | . . . . . . . . . . . . . . . . . . . . . . . . . . . . . . . 1 . . . . . . . . . . Scanalyzers 1 | . . . . . . . 1 . . . . . . . . . . . . . . . . . . . . . . . . . . . . . . . . . . Garrison Access 5 | . . . . . . . 1 . 1 . . . . . . . . . . . . . . . . . . . . . 1 . . . . . 1 . . 1 . Total Hacks 128 | . 8 . 7 . 2 . 20 . 8 . . . . 1 4 . . . 2 2 . 29 . 12 . 3 . . . . 4 . 4 8 2 . 6 . . 6 . Successful 84 | . 4 . 4 . 2 . 5 . 5 . . . . 1 4 . . . 1 2 . 29 . 7 . 1 . . . . 4 . 2 5 1 . 4 . . 3 . Failed 44 | . 4 . 3 . . . 15 . 3 . . . . . . . . . 1 . . . . 5 . 2 . . . . . . 2 3 1 . 2 . . 3 . Catastrophic 9 | . 1 . 1 . . . 3 . . . . . . . . . . . . . . . . . . 1 . . . . . . 2 1 . . . . . . . Database Lockouts . | . . . . . . . . . . . . . . . . . . . . . . . . . . . . . . . . . . . . . . . . . . Manual 54 | . 8 . 4 . 1 . 14 . 3 . . . . . . 4 . . . . . . . 6 . 3 . . . . 1 . 3 5 1 . 1 . . . . Terminals 72 | . 8 . 3 . . . 17 . 7 . . . . . . . . . 2 1 . . . 7 . 3 . . . . . . 4 8 2 . 5 . . 5 . Fabricators 5 | . . . . . . . . . . . . . . . . . . . . . . . . 5 . . . . . . . . . . . . . . . . . Repair Stations 4 | . . . 4 . . . . . . . . . . . . . . . . . . . . . . . . . . . . . . . . . . . . . . Recycling Units 1 | . . . . . . . . . . . . . . . . . . . . . . . . . . . . . . . 1 . . . . . . . . . . Scanalyzers 2 | . . . . . . . 2 . . . . . . . . . . . . . . . . . . . . . . . . . . . . . . . . . . Garrison Access 7 | . . . . . . . 1 . 1 . . . . . . . . . . . . . . . . . . . . . 3 . . . . . 1 . . 1 . Terminal Hacks 66 | . 4 . 1 . 2 . 2 . 3 . . . . 1 4 . . . 1 2 . 29 . 4 . 1 . . . . . . 2 4 1 . 3 . . 2 . Record 17 | . . . . . 1 . . . . . . . . . 3 . . . . 1 . 11 . . . . . . . . . . . . . . . . . 1 . Part Schematic 11 | . . . . . . . . . . . . . . . . . . . . . . 11 . . . . . . . . . . . . . . . . . . . Robot Schematic 4 | . . . . . . . . . . . . . . . . . . . . . . 4 . . . . . . . . . . . . . . . . . . . Robot Analysis 4 | . 4 . . . . . . . . . . . . . . . . . . . . . . . . . . . . . . . . . . . . . . . . Prototype ID Bank 3 | . . . . . . . . . . . . . . . . . . . . . . 3 . . . . . . . . . . . . . . . . . . . Open Door 7 | . . . . . . . . . . . . . . 1 1 . . . . 1 . . . . . . . . . . . . . 3 1 . . . . . . Branch Access Points 4 | . . . 1 . . . . . . . . . . . . . . . . . . . . 1 . 1 . . . . . . 1 . . . . . . . . Emergency Access Points 1 | . . . . . . . . . . . . . . . . . . . . . . . . . . . . . . . . . . . . . 1 . . . . Terminal Index 3 | . . . . . . . 1 . 1 . . . . . . . . . . . . . . . . . . . . . . . 1 . . . . . . . . Unreport Threat 5 | . . . . . . . . . 1 . . . . . . . . . . . . . . 2 . . . . . . . . . 1 . . . . . 1 . Locate Traps 1 | . . . . . . . . . . . . . . . . . . . . . . . . 1 . . . . . . . . . . . . . . . . . Hauler Manifests 3 | . . . . . . . 1 . 1 . . . . . . . . . 1 . . . . . . . . . . . . . . . . . . . . . . Registered Components 1 | . . . . . . . . . . . . . . . . . . . . . . . . . . . . . . . . . . . . . 1 . . . . Zone Layout 1 | . . . . . . . . . . . . . . . . . . . . . . . . . . . . . . . . . . . . . 1 . . . . EX-Prototype ID Bank 1 | . . . . . 1 . . . . . . . . . . . . . . . . . . . . . . . . . . . . . . . . . . . . Fabricator Hacks 3 | . . . . . . . . . . . . . . . . . . . . . . . . 3 . . . . . . . . . . . . . . . . . Load Schematic 2 | . . . . . . . . . . . . . . . . . . . . . . . . 2 . . . . . . . . . . . . . . . . . Build 1 | . . . . . . . . . . . . . . . . . . . . . . . . 1 . . . . . . . . . . . . . . . . . Repair Station Hacks 3 | . . . 3 . . . . . . . . . . . . . . . . . . . . . . . . . . . . . . . . . . . . . . Scan Component 2 | . . . 2 . . . . . . . . . . . . . . . . . . . . . . . . . . . . . . . . . . . . . . Repair 1 | . . . 1 . . . . . . . . . . . . . . . . . . . . . . . . . . . . . . . . . . . . . . Recycling Unit Hacks 1 | . . . . . . . . . . . . . . . . . . . . . . . . . . . . . . . 1 . . . . . . . . . . Report Inventory 1 | . . . . . . . . . . . . . . . . . . . . . . . . . . . . . . . 1 . . . . . . . . . . Scanalyzer 1 | . . . . . . . 1 . . . . . . . . . . . . . . . . . . . . . . . . . . . . . . . . . . Insert Component 1 | . . . . . . . 1 . . . . . . . . . . . . . . . . . . . . . . . . . . . . . . . . . . Garrison Access Hacks 6 | . . . . . . . 1 . 1 . . . . . . . . . . . . . . . . . . . . . 2 . . . . . 1 . . 1 . Unlock Access 4 | . . . . . . . 1 . 1 . . . . . . . . . . . . . . . . . . . . . . . . . . . 1 . . 1 . Seal Access 1 | . . . . . . . . . . . . . . . . . . . . . . . . . . . . . . . 1 . . . . . . . . . . Coupler Status 1 | . . . . . . . . . . . . . . . . . . . . . . . . . . . . . . . 1 . . . . . . . . . . Unauthorized Hacks 4 | . . . . . . . 1 . 1 . . . . . . . . . . . . . . . . . . . . . 1 . . 1 . . . . . . . Terminals 3 | . . . . . . . 1 . 1 . . . . . . . . . . . . . . . . . . . . . . . . 1 . . . . . . . Botnet 3 | . . . . . . . 1 . 1 . . . . . . . . . . . . . . . . . . . . . . . . 1 . . . . . . . Fabricators . | . . . . . . . . . . . . . . . . . . . . . . . . . . . . . . . . . . . . . . . . . . Repair Stations . | . . . . . . . . . . . . . . . . . . . . . . . . . . . . . . . . . . . . . . . . . . Recycling Units . | . . . . . . . . . . . . . . . . . . . . . . . . . . . . . . . . . . . . . . . . . . Scanalyzers . | . . . . . . . . . . . . . . . . . . . . . . . . . . . . . . . . . . . . . . . . . . Garrison Access 1 | . . . . . . . . . . . . . . . . . . . . . . . . . . . . . . . 1 . . . . . . . . . . Restock 1 | . . . . . . . . . . . . . . . . . . . . . . . . . . . . . . . 1 . . . . . . . . . . Data Cores Recovered . | . . . . . . . . . . . . . . . . . . . . . . . . . . . . . . . . . . . . . . . . . . Used . | . . . . . . . . . . . . . . . . . . . . . . . . . . . . . . . . . . . . . . . . . . Hacking Detections 28 | . 1 . 3 . . . 9 . 3 . . . . . . . . . . 1 . . . 3 . 1 . . . . 1 . 1 2 . . 1 . . 2 . Full Trace Events 3 | . . . . . . . 1 . . . . . . . . . . . . . . . . 2 . . . . . . . . . . . . . . . . . Feedback Events . | . . . . . . . . . . . . . . . . . . . . . . . . . . . . . . . . . . . . . . . . . . Feedback Blocked . | . . . . . . . . . . . . . . . . . . . . . . . . . . . . . . . . . . . . . . . . . . Robot Schematics Acquired 7 | . . . . . . . . . . . . . . . . 3 . . . . . 4 . . . . . . . . . . . . . . . . . . . Robots Built . | . . . . . . . . . . . . . . . . . . . . . . . . . . . . . . . . . . . . . . . . . . Authchips . | . . . . . . . . . . . . . . . . . . . . . . . . . . . . . . . . . . . . . . . . . . Time . | . . . . . . . . . . . . . . . . . . . . . . . . . . . . . . . . . . . . . . . . . . Total Robot Build Rating . | . . . . . . . . . . . . . . . . . . . . . . . . . . . . . . . . . . . . . . . . . . Part Schematics Acquired 28 | . . . . . . . . . . . . . . . . 15 . . . . . 11 . . . . . . . . . . . . . . . . . 2 . Parts Built 1 | . . . . . . . . . . . . . . . . . . . . . . . . 1 . . . . . . . . . . . . . . . . . Authchips . | . . . . . . . . . . . . . . . . . . . . . . . . . . . . . . . . . . . . . . . . . . Time 84 | . . . . . . . . . . . . . . . . . . . . . . . . 84 . . . . . . . . . . . . . . . . . Total Part Build Rating 6 | . . . . . . . . . . . . . . . . . . . . . . . . 6 . . . . . . . . . . . . . . . . . Parts Repaired 1 | . . . 1 . . . . . . . . . . . . . . . . . . . . . . . . . . . . . . . . . . . . . . Time 136 | . . . 136 . . . . . . . . . . . . . . . . . . . . . . . . . . . . . . . . . . . . . . Parts Recycled . | . . . . . . . . . . . . . . . . . . . . . . . . . . . . . . . . . . . . . . . . . . Recycled Matter . | . . . . . . . . . . . . . . . . . . . . . . . . . . . . . . . . . . . . . . . . . . Retrieved Matter . | . . . . . . . . . . . . . . . . . . . . . . . . . . . . . . . . . . . . . . . . . . Retrieved Components . | . . . . . . . . . . . . . . . . . . . . . . . . . . . . . . . . . . . . . . . . . . Parts Scanalyzed 1 | . . . . . . . 1 . . . . . . . . . . . . . . . . . . . . . . . . . . . . . . . . . . Part Schematics Acquired . | . . . . . . . . . . . . . . . . . . . . . . . . . . . . . . . . . . . . . . . . . . Parts Damaged . | . . . . . . . . . . . . . . . . . . . . . . . . . . . . . . . . . . . . . . . . . . Bothacking | -11 -10 -10 -9 -9 -9 -8 -8 -8 -8 -8 -7 -7 -7 -7 -7 -7 -7 -6 -6 -6 -6 -6 -5 -5 -5 -5 -5 -5 -5 -4 -4 -4 -4 -4 -4 -4 -4 -4 -3 -3 -3 ------------ Run | Scr Mat Min Mat Min Exi Min Mat Gar Mat Gar Fac Was Fac Low Low Zio Dee Pro Fac Low Low Dat Pro Fac Was Fac Upp Upp War Pro Fac Was Fac Ext Cet Arc Hub Gar Res Qua Gar Used RIF Installer 2 | . . . . . . . . 1 . . . . . . . . . . . . . . . . . . . . . . . . . . . . . 1 . . . Threat Obfuscator 1 | . . . . . . . . . . . . . . . . . . . . . . . . . . . . . . . . . . . . . . 1 . . . Robots Hacked 20 | . . . . . 4 . . . . . . 6 . . . . . . . . . 1 . 1 6 . 1 . . . . . . 1 . . . . . . . Non-combat 4 | . . . . . 3 . . . . . . . . . . . . . . . . . . 1 . . . . . . . . . . . . . . . . . Combat 16 | . . . . . 1 . . . . . . 6 . . . . . . . . . 1 . . 6 . 1 . . . . . . 1 . . . . . . . Robot Hacks Applied 20 | . . . . . 4 . . . . . . 6 . . . . . . . . . 1 . 1 6 . 1 . . . . . . 1 . . . . . . . parse_system 7 | . . . . . 4 . . . . . . . . . . . . . . . . 1 . . . . 1 . . . . . . 1 . . . . . . . find_chute 1 | . . . . . . . . . . . . . . . . . . . . . . . . 1 . . . . . . . . . . . . . . . . . ignore_targets 12 | . . . . . . . . . . . . 6 . . . . . . . . . . . . 6 . . . . . . . . . . . . . . . . Relay Couplers Released 13 | . . . . . . . . 6 . . . . . . . . . . . . . . . 4 . . . . . . . . 3 . . . . . . . . Machine Destruction 9 | . . . . . . . . 6 . . . . . . . . . . . . . . . . . . . . . . . . 3 . . . . . . . . Programmers 4 | . . . . . . . . . . . . . . . . . . . . . . . . 4 . . . . . . . . . . . . . . . . . Attached 2 | . . . . . . . . . . . . 1 . . . . . . . . . . . . 1 . . . . . . . . . . . . . . . . Fabnet Peak Effective % . | . . . . . . . . . . . . . . . . . . . . . . . . . . . . . . . . . . . . . . . . . . Robots Rewired 9 | . . . . . . . . . . . . . . . . . . . . . . . . . . . . 1 . 2 . . . 6 . . . . . . . Allies Hacked . | . . . . . . . . . . . . . . . . . . . . . . . . . . . . . . . . . . . . . . . . . . Hacks Repelled . | . . . . . . . . . . . . . . . . . . . . . . . . . . . . . . . . . . . . . . . . . . Allies | -11 -10 -10 -9 -9 -9 -8 -8 -8 -8 -8 -7 -7 -7 -7 -7 -7 -7 -6 -6 -6 -6 -6 -5 -5 -5 -5 -5 -5 -5 -4 -4 -4 -4 -4 -4 -4 -4 -4 -3 -3 -3 -------- Run | Scr Mat Min Mat Min Exi Min Mat Gar Mat Gar Fac Was Fac Low Low Zio Dee Pro Fac Low Low Dat Pro Fac Was Fac Upp Upp War Pro Fac Was Fac Ext Cet Arc Hub Gar Res Qua Gar Total Allies 71 | . . 3 . 2 . . . . . . . 19 . . . . . . 3 . . 1 . . . 2 . 1 . 4 . 19 . 9 5 . . . . 3 . Largest Group 19 | . . 3 . 2 . . . . . . . 19 19 19 13 12 . . 3 . . 1 . . . 2 2 2 1 2 2 18 18 9 7 6 5 5 2 3 . Highest-Rated Group 656 | . . 40 . 47 . . . . . . . 465 465 465 381 350 . . 93 . . 59 . . . 274 274 274 134 134 60 656 656 474 626 509 480 480 185 138 . Highest-Rated Ally 159 | . . 16 . 31 . . . . . . . 35 35 35 35 35 . . 31 . . 59 . . . 137 137 137 134 134 30 50 50 159 159 96 96 96 96 89 . Total Orders 41 | . . . . . . . . . . . . . . . . . . . 2 . . 3 . . . 2 . . . . 1 6 . 11 8 5 1 2 . . . STAY 7 | . . . . . . . . . . . . . . . . . . . . . . 3 . . . 1 . . . . . . . . . 2 . 1 . . . FOLLOW 5 | . . . . . . . . . . . . . . . . . . . . . . . . . . 1 . . . . . 1 . . . 2 . 1 . . . GUARD 4 | . . . . . . . . . . . . . . . . . . . . . . . . . . . . . . . . . . 1 2 . 1 . . . . AID 2 | . . . . . . . . . . . . . . . . . . . . . . . . . . . . . . . 1 . . . 1 . . . . . . RETURN 23 | . . . . . . . . . . . . . . . . . . . 2 . . . . . . . . . . . . 5 . 10 5 1 . . . . . Ally Attacks 724 | . . 17 . 4 . . . . . . . . . 51 15 43 21 . 56 . . . . . . 17 15 19 . 4 10 48 86 130 75 27 34 24 19 9 . Total Damage 20328 | . . 136 . 44 . . . . . . . . . 1219 396 486 930 . 674 . . . . . . 1351 878 1129 . 141 302 920 2379 3374 1724 885 1357 1078 705 220 . Kills 123 | . . 2 . . . . . . . . . . . 12 5 4 . . 4 . . . . . . 9 7 8 . . 1 1 17 19 12 4 8 3 4 3 . Allies Corrupted 3 | . . . . 1 . . . . . . . . . . . . . . . . . . . . . . . . . . . . . . . . . . . 2 . Allies Melted . | . . . . . . . . . . . . . . . . . . . . . . . . . . . . . . . . . . . . . . . . . . Turrets Deployed 1 | . . . . . . . . . . . . . . . . . 1 . . . . . . . . . . . . . . . . . . . . . . . . Field Lobotomies 5 | . . . . . . . . . . . . . . . . . . . . . . 1 . . . 2 . . . 2 . . . . . . . . . . . Intel | -11 -10 -10 -9 -9 -9 -8 -8 -8 -8 -8 -7 -7 -7 -7 -7 -7 -7 -6 -6 -6 -6 -6 -5 -5 -5 -5 -5 -5 -5 -4 -4 -4 -4 -4 -4 -4 -4 -4 -3 -3 -3 ------- Run | Scr Mat Min Mat Min Exi Min Mat Gar Mat Gar Fac Was Fac Low Low Zio Dee Pro Fac Low Low Dat Pro Fac Was Fac Upp Upp War Pro Fac Was Fac Ext Cet Arc Hub Gar Res Qua Gar Robot Analysis Total 4 | . 4 . . . . . . . . . . . . . . . . . . . . . . . . . . . . . . . . . . . . . . . . Derelict Logs Recovered 23 | . . 1 . 2 . . . . . . . . . 2 2 2 . 3 . 1 2 . 1 . . . 3 2 . 2 . . . . . . . . . . . Drone Launches 24 | . . . . . . . . . . . . . . . . . . . 2 . . . . . . . . . . . . 5 . 11 6 . . . . . . Drone Recoveries 23 | . . . . . . . . . . . . . . . . . . . 2 . . . . . . . . . . . . 5 . 11 4 1 . . . . . Exploration | -11 -10 -10 -9 -9 -9 -8 -8 -8 -8 -8 -7 -7 -7 -7 -7 -7 -7 -6 -6 -6 -6 -6 -5 -5 -5 -5 -5 -5 -5 -4 -4 -4 -4 -4 -4 -4 -4 -4 -3 -3 -3 ------------- Run | Scr Mat Min Mat Min Exi Min Mat Gar Mat Gar Fac Was Fac Low Low Zio Dee Pro Fac Low Low Dat Pro Fac Was Fac Upp Upp War Pro Fac Was Fac Ext Cet Arc Hub Gar Res Qua Gar Turns Passed 58278 | 30 326 1227 1489 1762 4515 2516 3424 708 1155 538 901 1704 50 649 773 5975 1153 3154 2041 3019 2194 431 1261 1008 2331 582 1672 1046 74 1214 318 1535 747 1746 419 2182 142 215 246 1428 378 Spaces Moved 22439 | 14 161 706 457 911 1638 740 890 384 449 170 103 510 26 397 431 2669 504 1325 747 1184 890 142 568 303 541 259 1032 555 45 534 157 528 297 714 137 266 80 124 118 627 106 Core 171 | . . . . . . . . . . . . . . . . . . . . . . . . . . . . . . . . . . . . . . . . 79 92 Treads 19780 | 14 161 706 419 911 1638 740 536 384 449 170 103 510 26 397 431 2669 504 703 468 1184 890 142 68 . 432 259 1032 555 45 534 157 528 297 431 137 266 80 124 118 548 14 Legs 716 | . . . . . . . 98 . . . . . . . . . . . . . . . . 226 109 . . . . . . . . 283 . . . . . . . Wheels 1772 | . . . 38 . . . 256 . . . . . . . . . . 622 279 . . . 500 77 . . . . . . . . . . . . . . . . . Hover . | . . . . . . . . . . . . . . . . . . . . . . . . . . . . . . . . . . . . . . . . . . Flight . | . . . . . . . . . . . . . . . . . . . . . . . . . . . . . . . . . . . . . . . . . . Fastest Speed 50 | 160 160 160 115 170 163 323 160 158 155 235 240 160 160 160 160 160 160 166 150 240 240 240 205 120 190 160 160 160 167 162 162 155 153 158 160 160 160 160 160 50 50 Average Speed 201 | 160 160 160 157 170 251 323 318 160 166 237 240 171 160 160 160 162 210 234 220 240 240 240 209 185 250 164 160 164 167 166 167 157 164 199 216 189 160 160 160 151 102 Slowest Speed 725 | 160 160 160 240 170 565 323 725 162 235 242 242 240 160 160 160 245 246 246 246 240 240 240 400 270 320 240 160 246 167 167 242 162 245 400 240 240 160 160 160 480 200 Overloaded Moves . | . . . . . . . . . . . . . . . . . . . . . . . . . . . . . . . . . . . . . . . . . . Propulsion Burnouts . | . . . . . . . . . . . . . . . . . . . . . . . . . . . . . . . . . . . . . . . . . . Robots Hopped . | . . . . . . . . . . . . . . . . . . . . . . . . . . . . . . . . . . . . . . . . . . Cave-ins Triggered . | . . . . . . . . . . . . . . . . . . . . . . . . . . . . . . . . . . . . . . . . . . Exploration Rate (%) 53 | 2 24 97 41 97 92 98 61 56 39 31 2 96 1 57 47 88 59 91 20 98 94 75 71 10 87 14 95 63 9 68 3 97 13 67 65 84 13 35 6 65 36 Regions Visited 41 Branch Regions 22 Pre-discovered Areas 6 | . . . . 1 1 . . . . . . . . . . . . 1 . 1 . 1 . . . . . 1 . . . . . . . . . . . . . Known Exits Taken 17 | . . . 1 . . 1 1 . 1 . . . 1 1 1 . . . 1 . . . 1 . . 1 1 1 . 1 . . 1 . . . 1 . 1 1 . Unknown Exits Taken 15 | 1 1 1 . 1 1 . . . . . . . . . . 1 1 1 . 1 1 1 . . . . . . 1 . . . . 1 1 1 . . . . . Scrap Searched 27 | . . 1 . 1 . 1 . . . . . . . 3 2 3 . 4 . 3 3 . 1 . . . 2 2 . 1 . . . . . . . . . . . Spaces Dug 139 | . . . . 1 2 . 1 . . . . . . . . 31 . . 5 . . . 11 4 . 8 . . . 1 . . 46 1 . . . . 25 2 1 Terrain Destroyed 2310 | . . 5 20 172 48 13 33 14 66 . . . . . . 96 28 129 10 5 . . 72 84 . 8 . 89 . 167 5 249 183 7 . 24 3 . 28 751 1 Melee 51 | . . . . 1 2 . 1 . . . . . . . . 31 . . 3 . . . . 4 . 4 . . . 1 . . 1 . . . . . . 2 1 Projectile 151 | . . . . . 6 13 32 . 1 . . . . . . 4 2 1 5 . . . . 6 . 4 . 5 . 12 5 1 20 6 . 24 3 . 1 . . AOE 2074 | . . 5 20 171 40 . . 14 65 . . . . . . 61 26 128 . . . . 69 67 . . . 84 . 154 . 248 162 . . . . . 25 735 . Terrain Rammed . | . . . . . . . . . . . . . . . . . . . . . . . . . . . . . . . . . . . . . . . . . . Walls Destroyed . | . . . . . . . . . . . . . . . . . . . . . . . . . . . . . . . . . . . . . . . . . . Machines Disabled . | . . . . . . . . . . . . . . . . . . . . . . . . . . . . . . . . . . . . . . . . . . Actions | -11 -10 -10 -9 -9 -9 -8 -8 -8 -8 -8 -7 -7 -7 -7 -7 -7 -7 -6 -6 -6 -6 -6 -5 -5 -5 -5 -5 -5 -5 -4 -4 -4 -4 -4 -4 -4 -4 -4 -3 -3 -3 --------- Run | Scr Mat Min Mat Min Exi Min Mat Gar Mat Gar Fac Was Fac Low Low Zio Dee Pro Fac Low Low Dat Pro Fac Was Fac Upp Upp War Pro Fac Was Fac Ext Cet Arc Hub Gar Res Qua Gar Total 32528 | 19 201 768 1105 1062 1905 826 1335 448 652 231 734 1222 34 411 516 3797 556 1359 983 1298 928 214 597 587 1358 357 1047 643 44 809 201 1203 434 899 262 1862 87 138 144 907 345 Wait 6969 | . 4 23 486 86 29 54 218 27 48 1 600 579 8 15 82 720 10 . 73 73 18 38 . 148 683 48 8 23 . 179 23 621 56 36 108 1539 5 14 2 77 207 Move 22403 | 13 160 705 456 910 1637 739 890 383 449 169 103 509 25 396 430 2668 503 1324 746 1183 889 141 567 303 540 258 1031 554 44 533 157 527 296 713 136 265 79 123 117 626 106 Hop . | . . . . . . . . . . . . . . . . . . . . . . . . . . . . . . . . . . . . . . . . . . Pick Up 310 | . 13 5 21 3 44 5 28 6 8 2 10 8 . . 2 12 5 12 17 3 1 4 1 16 7 1 . 4 . 5 6 12 2 18 2 1 . . 3 21 2 Fast Attach 180 | 1 3 1 8 1 8 . 18 . 3 3 1 6 . . . 7 1 . 12 3 3 . 1 11 4 4 2 5 . 10 2 4 5 26 6 7 . . . 13 1 Attach 178 | . 1 2 2 3 11 . 26 1 2 5 1 2 . . . 3 5 8 7 1 . . 2 13 2 3 . 4 . 13 2 10 4 12 . 1 . . 3 23 6 Detach 33 | . . . 1 . 3 . 5 . . . . . . . . . . . 2 . . . 1 1 1 . . 2 . 8 . 1 . 1 . 1 . . . 4 2 Swap 237 | 2 . 2 13 10 9 . 9 4 17 1 3 11 1 . . 12 6 4 23 3 3 11 4 14 7 9 2 8 . 4 . 5 10 7 2 1 . . 6 14 . Drop 389 | 2 4 4 34 2 29 5 51 5 13 4 2 22 . . 2 19 7 2 24 4 4 4 . 11 13 4 1 7 . 8 4 14 6 20 8 6 . . 1 39 4 Fire 1490 | 1 16 19 81 35 73 20 82 22 107 42 14 31 . . . 320 19 9 73 28 9 16 21 64 36 25 3 25 . 35 7 9 49 62 . 41 3 1 12 80 . Melee 266 | . . . . 5 62 . 2 . . . . 54 . . . 36 . . 4 . . . . 5 65 5 . . . 1 . . 1 . . . . . . 10 16 Ram 1 | . . . . . . . . . . . . . . . . . . . . . . . . . . . . . . . . . . . . . . . . . 1 Kick 1 | . . . . . . . . . . . . . . . . . . . . . . . . 1 . . . . . . . . . . . . . . . . . Crush 38 | . . 7 3 7 . 3 6 . 5 . . . . . . . . . 2 . . . . . . . . . . . . . 5 . . . . . . . . Escape Stasis 8 | . . . . . . . . . . 4 . . . . . . . . . . . . . . . . . . . . . . . 4 . . . . . . . Rewire 25 | . . . . . . . . . . . . . . . . . . . . . 1 . . . . . . 11 . 13 . . . . . . . . . . . Trap . | . . . . . . . . . . . . . . . . . . . . . . . . . . . . . . . . . . . . . . . . . . Miscellaneous . | . . . . . . . . . . . . . . . . . . . . . . . . . . . . . . . . . . . . . . . . . . Route ------- -11/Scrapyard -10/Materials -10/Mines (discovered 2 exits: *Mat x2) -9/Materials (discovered 2 exits: *Mat / *Min) -9/Mines (discovered 4 exits: *Mat x2 / *Exi / *Zio) -9/Exiles (discovered 2 exits: [*Min x2]) -8/Mines (discovered 2 exits: *Mat x2) -8/Materials (discovered 3 exits: [*Fac x2] / Gar) -8/Garrison (discovered 2 exits: *Mat x2) -8/Materials (discovered 2 exits: [*Fac] / Gar) -8/Garrison -7/Factory -7/Waste -7/Factory -7/Lower Caves -7/Lower Caves -7/Zion (discovered 2 exits: [*Dee] / *Pro) -7/Deep Caves -6/Proximity Caves -6/Factory (discovered 3 exits: *Fac x2 / *Low) -6/Lower Caves -6/Lower Caves (discovered 2 exits: *Fac / *Dat) -6/Data Miner -5/Proximity Caves -5/Factory (discovered 3 exits: Fac / Upp x2) -5/Waste -5/Factory (discovered 2 exits: *Upp x2) -5/Upper Caves -5/Upper Caves -5/Warlord -4/Proximity Caves -4/Factory (discovered 2 exits: Ext / Arm) -4/Waste -4/Factory (discovered 6 exits: [*Res] / Upp x2 / *Ext x2 / Arm) -4/Extension (discovered 2 exits: [*Res] / *Cet) -4/Cetus -4/Archives (discovered 3 exits: [*Res] / *Hub x2) -4/Hub_04(d) -4/Garrison -3/Research -3/Quarantine -3/Garrison History --------- Turn | Location | Event 8 | -11/Scrapyard | Discovered new exit (range 3) 31 | -11/Scrapyard | Entered Materials 295 | -10/Materials | Discovered new exit (range 14) 318 | -10/Materials | Build established: Mutant 357 | -10/Materials | Entered Mines 391 | -10/Mines | Met a Derelict bent on vengeance 397 | -10/Mines | Assisted by bots powering up and referring to "LRC-V3" 437 | -10/Mines | Discovered new exit (range 4) 1309 | -10/Mines | Discovered new exit (range 12) 1332 | -10/Mines | Received a Rocket Launcher from a helpful Derelict 1382 | -10/Mines | Found a damaged Exp. Sensor Array with a note attached 1386 | -10/Mines | Found Prototype Device 1584 | -10/Mines | Entered Materials 1584 | -9/Materials | Evolved 2 slots: Propulsion x1, Utility x1 2117 | -9/Materials | Identified exit to Mines 2156 | -9/Materials | Discovered new exit (range 10) 2750 | -9/Materials | Identified Exp. Sensor Array 2889 | -9/Materials | Repaired Faulty Exp. Sensor Array 3073 | -9/Materials | Entered Mines 3126 | -9/Mines | Discovered new exit (range 5) 3202 | -9/Mines | Assembled infested the area 3274 | -9/Mines | Destroyed 19 combat bots 3277 | -9/Mines | A weapon hastily lodged in a ceiling crevice suddenly fell to the ground 3317 | -9/Mines | Learned location of Storage (-7) 3319 | -9/Mines | Learned 2 Materials zone layouts 3586 | -9/Mines | A Derelict revealed a hidden shortcut to a safe place 3597 | -9/Mines | Destroyed 9 combat bots 3864 | -9/Mines | Identified exit to Materials 4047 | -9/Mines | Deemed a non-threat by the Exiles lab entrance 4053 | -9/Mines | Discovered new exit (range 5) 4835 | -9/Mines | Entered Exiles 4884 | -9/Exiles | Met 8R-AWN 4928 | -9/Exiles | Met EX-HEX 4977 | -9/Exiles | Met EX-BIN 4999 | -9/Exiles | Aligned with FarCom system 5001 | -9/Exiles | Given EX-Vault access code 5049 | -9/Exiles | Opened EX-Vault 5061 | -9/Exiles | Found Field Lobotomy Kit 5099 | -9/Exiles | Warned to stay clear of 0b10 Research branches 5145 | -9/Exiles | Met EX-DEC 5157 | -9/Exiles | Learned location of Zion (-7) 5218 | -9/Exiles | Discovered new exit (range 14) 5794 | -9/Exiles | Build established: Hauler-Mutant 5806 | -9/Exiles | Discovered new exit (range 15) 6538 | -9/Exiles | Attacked by the Exiles 6735 | -9/Exiles | Destroyed 8R-AWN 6748 | -9/Exiles | Lost 4 parts (2n2u) 7036 | -9/Exiles | Build established: Mutant 7200 | -9/Exiles | Found 8R-AWN's Boregun 7342 | -9/Exiles | Destroyed EX-BIN 7387 | -9/Exiles | Destroyed EX-HEX 7531 | -9/Exiles | Destroyed EX-DEC 7990 | -9/Exiles | Build established: Hauler-Mutant 8254 | -9/Exiles | Found System Purifier 8357 | -9/Exiles | Found Deploy-a-Sentry 8385 | -9/Exiles | Found Exp. Core Analyzer 8919 | -9/Exiles | Found AWS/Autocannon 8925 | -9/Exiles | Found Chronowheel 9350 | -9/Exiles | Stole four prototypes: Chronowheel, AWS/Autocannon, Field Lobotomy Kit, Deploy-a-Sentry 9350 | -9/Exiles | Entered Mines 9695 | -8/Mines | Core integrity fell below 50% 9851 | -8/Mines | Discovered exit to Materials (range 15) 10195 | -8/Mines | Discovered exit to Materials (range 8) 11866 | -8/Mines | Entered Materials 11866 | -8/Materials | Evolved 2 slots: Propulsion x1, Weapon x1 12169 | -8/Materials | Build established: Hauler-Gunner 12685 | -8/Materials | Discovered new exit (range 16) 12695 | -8/Materials | Lost 5 parts (1p4n) 13244 | -8/Materials | Build established: Hauler-Mutant 13610 | -8/Materials | Build established: Hauler-Gunner 14617 | -8/Materials | Build established: Hauler-Tank 14666 | -8/Materials | First assault squad dispatched 14781 | -8/Materials | Lost 3 parts (2n1w) 15073 | -8/Materials | Discovered new exit (range 7) 15290 | -8/Materials | Identified exit to Garrison 15290 | -8/Materials | Entered Garrison 15363 | -8/Garrison | Triggered checkpoint 15433 | -8/Garrison | Discovered new exit (range 10) 15465 | -8/Garrison | Installed Relay Interface Framework 15502 | -8/Garrison | Triggered checkpoint 15542 | -8/Garrison | Garrison Relay disabled 15630 | -8/Garrison | Triggered checkpoint 15655 | -8/Garrison | Destroyed 8 combat bots 15724 | -8/Garrison | Discovered new exit (range 15) 15792 | -8/Garrison | Triggered checkpoint 15833 | -8/Garrison | Garrison Relay disabled 15998 | -8/Garrison | Entered Materials 16089 | -8/Materials | Build established: Scavenger-Tank 16261 | -8/Materials | Discovered new exit (range 16) 16798 | -8/Materials | First assault squad dispatched 16832 | -8/Materials | Garrison activated, responded to threat 16916 | -8/Materials | Destroyed 12 combat bots 16945 | -8/Materials | Garrison activated, responded to threat 17110 | -8/Materials | Garrison activated, responded to threat 17153 | -8/Materials | Identified exit to Garrison 17153 | -8/Materials | Entered Garrison 17277 | -8/Garrison | Core integrity fell below 50% 17351 | -8/Garrison | Triggered checkpoint 17481 | -8/Garrison | Triggered checkpoint 17560 | -8/Garrison | Lost 5 parts (1p3n1w) 17644 | -8/Garrison | Discovered new exit (range 15) 17691 | -8/Garrison | Entered Factory 17691 | -7/Factory | Evolved 2 slots: Utility x2 18045 | -7/Factory | Build established: Scavenger-Gunner 18509 | -7/Factory | Found Prototype Launcher 18510 | -7/Factory | Identified Rocket Array 18592 | -7/Factory | Sucked down chute 18592 | -7/Factory | Entered Waste 18675 | -7/Waste | Spotted C-40 Crusher 18675 | -7/Waste | Spotted C-40 Crusher 18758 | -7/Waste | Spotted C-40 Crusher 18758 | -7/Waste | Spotted C-40 Crusher 18778 | -7/Waste | Spotted C-40 Crusher 18824 | -7/Waste | Spotted C-40 Crusher 18938 | -7/Waste | Build established: Scavenger-Mutant 19056 | -7/Waste | Destroyed C-40 Crusher 19072 | -7/Waste | Found Damper Plating 19536 | -7/Waste | Destroyed C-40 Crusher 19562 | -7/Waste | Destroyed C-40 Crusher 19578 | -7/Waste | Destroyed C-40 Crusher 19627 | -7/Waste | Destroyed C-40 Crusher 19638 | -7/Waste | Destroyed C-40 Crusher 19841 | -7/Waste | Build established: Scavenger-Gunner 19957 | -7/Waste | Warlord forces began an assault 20140 | -7/Waste | Discovered new exit (range 12) 20280 | -7/Waste | Build established: Scavenger-Tank 20296 | -7/Waste | Entered Factory 20296 | -7/Factory | Accompanied by 19 allies 20312 | -7/Factory | Discovered new exit (range 13) 20334 | -7/Factory | Identified exit to Lower Caves 20346 | -7/Factory | Entered Lower Caves 20346 | -7/Lower Caves | Accompanied by 19 allies 20582 | -7/Lower Caves | Learned 4 Factory zone layouts 20617 | -7/Lower Caves | Learned Factory emergency access door positions 20620 | -7/Lower Caves | Build established: Scavenger-Gunner 20789 | -7/Lower Caves | Encountered a Warlord checkpoint 20967 | -7/Lower Caves | Discovered new exit (range 7) 20978 | -7/Lower Caves | Identified exit to Lower Caves 20995 | -7/Lower Caves | Entered another Lower Caves area 20995 | -7/Lower Caves | Accompanied by 13 allies 21148 | -7/Lower Caves | Learned Factory stockpile data 21669 | -7/Lower Caves | Learned Research emergency access door positions 21669 | -7/Lower Caves | Learned Armory garrison access intel 21725 | -7/Lower Caves | Discovered new exit (range 12) 21735 | -7/Lower Caves | Learned location of 1 exit from Factory 21757 | -7/Lower Caves | Identified exit to Zion 21768 | -7/Lower Caves | Entered Zion 21768 | -7/Zion | Accompanied by 12 allies 21908 | -7/Zion | Identified exit to Proximity Caves 21942 | -7/Zion | Received a hallucinogenic algorithm 22046 | -7/Zion | Given the Hacking Drone Bay 22046 | -7/Zion | Found Prototype Device 22182 | -7/Zion | Build established: Scavenger-Mutant 22592 | -7/Zion | RIF detected upon attempting to enter Zion 22592 | -7/Zion | Attacked by Zionites 22904 | -7/Zion | Build established: Scavenger-Gunner 23015 | -7/Zion | Spotted 59-8EU(B) 23019 | -7/Zion | Spotted 04-AEF(B) 23037 | -7/Zion | Destroyed 04-AEF(B) 23040 | -7/Zion | Destroyed 59-8EU(B) 23381 | -7/Zion | Destroyed Imprinter 23403 | -7/Zion | Extracted access codes from Imprinter's data core 23965 | -7/Zion | Opened final containment barrier to the Deep Caves 24317 | -7/Zion | Found Rocket Array 24677 | -7/Zion | Build established: Scavenger-Mutant 25212 | -7/Zion | Build established: Scavenger-Gunner 25878 | -7/Zion | Learned 8 Factory zone layouts 26569 | -7/Zion | Build established: Scavenger-Mutant 27723 | -7/Zion | Discovered new exit (range 5) 27727 | -7/Zion | Saw the warning signs outside the Deep Caves entrance 27743 | -7/Zion | Entered Deep Caves 27889 | -7/Deep Caves | Z-Facility disabled 27968 | -7/Deep Caves | Found Prototype Protection 27968 | -7/Deep Caves | Identified Zio. Weapon Casing 27991 | -7/Deep Caves | Found Zio. Weapon Casing 28184 | -7/Deep Caves | Build established: Scavenger-Tank 28540 | -7/Deep Caves | Discovered new exit (range 6) 28752 | -7/Deep Caves | Spotted as-49884 28756 | -7/Deep Caves | DAS Turret deployed 28783 | -7/Deep Caves | Exposed GOLEM chamber 28816 | -7/Deep Caves | Core integrity fell below 50% 28850 | -7/Deep Caves | Lost 5 parts (1p4u) 28896 | -7/Deep Caves | Entered Proximity Caves 29507 | -6/Proximity Caves | Build established: Scavenger-Mutant 29716 | -6/Proximity Caves | Attracted the attention of an 0b10 checkpoint 30023 | -6/Proximity Caves | Build established: Scavenger-Tank 30482 | -6/Proximity Caves | Discovered new exit (range 15) 30808 | -6/Proximity Caves | Build established: Scavenger-Mutant 32050 | -6/Proximity Caves | Entered Factory 32050 | -6/Factory | Evolved 2 slots: Utility x2 32051 | -6/Factory | Identified exit to Lower Caves 32052 | -6/Factory | Identified exit to Factory 32302 | -6/Factory | Allied Derelicts emerged from ambush trap array 32352 | -6/Factory | Build established: Scavenger-Tank 32672 | -6/Factory | Build established: Derelict-Tank 32998 | -6/Factory | Identified Hacking Drone Bay 33077 | -6/Factory | Build established: Scavenger-Tank 33656 | -6/Factory | Discovered exit to Factory (range 14) 34091 | -6/Factory | Entered Lower Caves 35253 | -6/Lower Caves | Discovered new exit (range 13) 37110 | -6/Lower Caves | Entered another Lower Caves area 37111 | -6/Lower Caves | Encountered a Warlord checkpoint 37379 | -6/Lower Caves | Learned location of 1 exit from Factory 37425 | -6/Lower Caves | Discovered exit to Factory (range 9) 38705 | -6/Lower Caves | Learned Factory garrison access intel 39012 | -6/Lower Caves | Discovered new exit (range 2) 39304 | -6/Lower Caves | Entered Data Miner 39304 | -6/Data Miner | Discovered new exit (range 6) 39350 | -6/Data Miner | Met Data Miner 39410 | -6/Data Miner | Learned location of Section 7 (-2) 39410 | -6/Data Miner | Acquired the access code to Warlord's prototype stash 39460 | -6/Data Miner | Received God Mode back door access code from Data Miner 39512 | -6/Data Miner | Assimilated Data Miner with FLK Orb 39648 | -6/Data Miner | Destroyed Data Miner 39656 | -6/Data Miner | Found Deep Network Scanner 39659 | -6/Data Miner | Found Ghost Barrier 39671 | -6/Data Miner | Found Quantum Router 39675 | -6/Data Miner | Found System Mapper 39735 | -6/Data Miner | Entered Proximity Caves 39737 | -5/Proximity Caves | Attracted the attention of an 0b10 checkpoint 39892 | -5/Proximity Caves | Learned 12 Factory zone layouts 40627 | -5/Proximity Caves | Discovered exit to Factory (range 6) 40996 | -5/Proximity Caves | Entered Factory 40996 | -5/Factory | Evolved 2 slots: Propulsion x1, Weapon x1 40997 | -5/Factory | Identified exit to Factory 40998 | -5/Factory | Identified exit to Upper Caves 40999 | -5/Factory | Loaded intel: 4 garrison access locations 41133 | -5/Factory | Fabricated Combat Drone Bay? 41344 | -5/Factory | Lost 6 parts (3n2u1w) 41820 | -5/Factory | System corruption reached 10% 41856 | -5/Factory | Lost 3 parts (1p2w) 42004 | -5/Factory | Sucked down chute 42004 | -5/Factory | Entered Waste 42019 | -5/Waste | EMP discharged 42119 | -5/Waste | EMP discharged 42146 | -5/Waste | Spotted C-40 Crusher 42163 | -5/Waste | Spotted C-40 Crusher 42165 | -5/Waste | Spotted C-40 Crusher 42219 | -5/Waste | EMP discharged 42225 | -5/Waste | Spotted C-40 Crusher 42282 | -5/Waste | Build established: Scavenger-Mutant 42318 | -5/Waste | Spotted C-40 Crusher 42319 | -5/Waste | EMP discharged 42330 | -5/Waste | Spotted C-40 Crusher 42419 | -5/Waste | EMP discharged 42426 | -5/Waste | Discovered new exit (range 16) 42519 | -5/Waste | EMP discharged 42619 | -5/Waste | EMP discharged 42719 | -5/Waste | EMP discharged 42819 | -5/Waste | EMP discharged 42919 | -5/Waste | EMP discharged 42959 | -5/Waste | Destroyed C-40 Crusher 43019 | -5/Waste | EMP discharged 43068 | -5/Waste | Found Damper Plating 43108 | -5/Waste | Destroyed C-40 Crusher 43119 | -5/Waste | EMP discharged 43153 | -5/Waste | Destroyed C-40 Crusher 43219 | -5/Waste | EMP discharged 43276 | -5/Waste | Destroyed C-40 Crusher 43318 | -5/Waste | Build established: Scavenger-Tank 43319 | -5/Waste | EMP discharged 43404 | -5/Waste | Destroyed C-40 Crusher 43419 | -5/Waste | EMP discharged 43462 | -5/Waste | Destroyed C-40 Crusher 43519 | -5/Waste | EMP discharged 43619 | -5/Waste | EMP discharged 43719 | -5/Waste | EMP discharged 43819 | -5/Waste | EMP discharged 43919 | -5/Waste | EMP discharged 44019 | -5/Waste | EMP discharged 44119 | -5/Waste | EMP discharged 44219 | -5/Waste | EMP discharged 44319 | -5/Waste | EMP discharged 44335 | -5/Waste | Entered Factory 44596 | -5/Factory | Garrison activated, responded to threat 44739 | -5/Factory | Spotted B-75 Beast 44799 | -5/Factory | Assimilated H-71 Marshal with FLK Orb 44893 | -5/Factory | Assimilated H-71 Marshal with FLK Orb 44917 | -5/Factory | Entered Upper Caves 44917 | -5/Upper Caves | Accompanied by 2 allies 45195 | -5/Upper Caves | Attracted the attention of an 0b10 checkpoint 45766 | -5/Upper Caves | Identified exit to Upper Caves 46589 | -5/Upper Caves | Entered another Upper Caves area 46589 | -5/Upper Caves | Accompanied by 2 allies 46590 | -5/Upper Caves | Encountered a Warlord checkpoint 46844 | -5/Upper Caves | Spotted B-75 Beast 46979 | -5/Upper Caves | Destroyed B-75 Beast 47102 | -5/Upper Caves | Attracted the attention of an 0b10 outpost 47460 | -5/Upper Caves | Identified exit to Warlord 47635 | -5/Upper Caves | Entered Warlord 47635 | -5/Warlord | Accompanied by 1 ally 47689 | -5/Warlord | Discovered new exit (range 9) 47709 | -5/Warlord | Entered Proximity Caves 47709 | -4/Proximity Caves | Accompanied by 1 ally 47753 | -4/Proximity Caves | Lost 3 parts (1u2w) 47784 | -4/Proximity Caves | Learned location of 1 exit from Research 47815 | -4/Proximity Caves | Attracted the attention of an 0b10 checkpoint 48001 | -4/Proximity Caves | Spotted B-86 Titan 48005 | -4/Proximity Caves | Core integrity fell below 50% 48116 | -4/Proximity Caves | Build established: Scavenger-Mutant 48670 | -4/Proximity Caves | Attracted the attention of an 0b10 outpost 48671 | -4/Proximity Caves | Assimilated Y-72 Warden with FLK Orb 48682 | -4/Proximity Caves | Assimilated L-61 Swordsman with FLK Orb 48805 | -4/Proximity Caves | Discovered exit to Factory (range 11) 48923 | -4/Proximity Caves | Entered Factory 48923 | -4/Factory | Accompanied by 2 allies 48923 | -4/Factory | Evolved 2 slots: Power x1, Utility x1 48924 | -4/Factory | Identified exit to Extension 48924 | -4/Factory | Identified exit to Armory 49241 | -4/Factory | Sucked down chute 49241 | -4/Factory | Entered Waste 49241 | -4/Waste | Met up with 1 ally sucked down the chute earlier 49260 | -4/Waste | 1 allies followed down the chute 49281 | -4/Waste | Spotted C-40 Crusher 49322 | -4/Waste | Destroyed C-40 Crusher 49383 | -4/Waste | Spotted C-40 Crusher 49397 | -4/Waste | Spotted C-40 Crusher 49406 | -4/Waste | Destroyed C-40 Crusher 49413 | -4/Waste | Allies destroyed C-40 Crusher 49429 | -4/Waste | Spotted C-40 Crusher 49438 | -4/Waste | Destroyed C-40 Crusher 49519 | -4/Waste | Spotted C-40 Crusher 49527 | -4/Waste | Destroyed C-40 Crusher 49710 | -4/Waste | Build established: Hacker-Mutant 49724 | -4/Waste | Spotted C-40 Crusher 49724 | -4/Waste | Crushed by Compactor (1 part destroyed) 49725 | -4/Waste | Destroyed C-40 Crusher 49973 | -4/Waste | Warlord forces began an assault 50321 | -4/Waste | Build established: Hacker-Tank 50615 | -4/Waste | Discovered new exit (range 13) 50776 | -4/Waste | Entered Factory 50776 | -4/Factory | Accompanied by 18 allies 50892 | -4/Factory | Spotted B-86 Titan 50898 | -4/Factory | Allies destroyed B-86 Titan 50938 | -4/Factory | Garrison activated, responded to threat 51002 | -4/Factory | Identified exit to Upper Caves 51026 | -4/Factory | First assault squad dispatched 51148 | -4/Factory | Discovered new exit (range 14) 51225 | -4/Factory | Garrison activated, responded to threat 51274 | -4/Factory | Lost 3 parts (1p1n1u) 51365 | -4/Factory | Lost 5 parts (3p1n1u) 51401 | -4/Factory | Destroyed 7 combat bots 51495 | -4/Factory | Destroyed 9 combat bots 51523 | -4/Factory | Entered Extension 52194 | -4/Extension | Lost 8 parts (2p3n1u2w) 52198 | -4/Extension | Disrupted transfer network 52273 | -4/Extension | First assault squad dispatched 52397 | -4/Extension | System corruption reached 10% 52443 | -4/Extension | Destroyed 8 combat bots 52464 | -4/Extension | Lost 11 parts (2p2n2u5w) 52572 | -4/Extension | Rescued a captive Derelict 52658 | -4/Extension | Rescued a captive Derelict 52707 | -4/Extension | Build established: Scavenger-Mutant 52736 | -4/Extension | Rescued A7 53020 | -4/Extension | Allies destroyed B-86 Titan 53028 | -4/Extension | Spotted B-86 Titan 53042 | -4/Extension | Allies destroyed B-86 Titan 53239 | -4/Extension | Discovered new exit (range 18) 53239 | -4/Extension | Discovered new exit (range 18) 53269 | -4/Extension | Entered Cetus 53269 | -4/Cetus | Accompanied by 7 allies (A7) 53274 | -4/Cetus | Acquired a Cetus Manufacturing Module code from A7 53294 | -4/Cetus | Spotted Cetus Guard 53294 | -4/Cetus | Spotted Cetus Guard 53302 | -4/Cetus | Spotted Cetus Guard 53303 | -4/Cetus | Spotted Cetus Guard 53318 | -4/Cetus | Allies destroyed Cetus Guard 53321 | -4/Cetus | Allies destroyed Cetus Guard 53326 | -4/Cetus | Allies destroyed Cetus Guard 53328 | -4/Cetus | Allies destroyed Cetus Guard 53430 | -4/Cetus | Started Cetus Manufacturing Module 53455 | -4/Cetus | Manufactured an Enhanced Grunt 53480 | -4/Cetus | Manufactured an Enhanced Grunt 53505 | -4/Cetus | Manufactured an Enhanced Grunt 53530 | -4/Cetus | Manufactured an Enhanced Grunt 53555 | -4/Cetus | Manufactured an Enhanced Grunt 53586 | -4/Cetus | Build established: Scavenger-Tank 53634 | -4/Cetus | Discovered new exit (range 23) 53688 | -4/Cetus | Entered Archives 53688 | -4/Archives | Accompanied by 7 allies 53721 | -4/Archives | Discovered new exit (range 24) 53931 | -4/Archives | Discovered new exit (range 15) 53966 | -4/Archives | Discovered new exit (range 16) 54030 | -4/Archives | Build established: Scavenger-Mutant 54517 | -4/Archives | Build established: Scavenger-Tank 55870 | -4/Archives | Entered Hub_04(d) 55870 | -4/Hub_04(d) | Accompanied by 5 allies 55973 | -4/Hub_04(d) | Garrison activated, responded to threat 56000 | -4/Hub_04(d) | Identified exit to Garrison 56012 | -4/Hub_04(d) | Entered Garrison 56012 | -4/Garrison | Accompanied by 5 allies 56020 | -4/Garrison | Expanded RIF knowledge: Threat Obfuscation 56200 | -4/Garrison | Discovered new exit (range 14) 56227 | -4/Garrison | Entered Research 56227 | -3/Research | Accompanied by 2 allies 56227 | -3/Research | Evolved 2 slots: Propulsion x1, Utility x1 56228 | -3/Research | Identified exit to Quarantine 56473 | -3/Research | Entered Quarantine 56473 | -3/Quarantine | Accompanied by 1 ally 56524 | -3/Quarantine | Found Alien Artifact 56524 | -3/Quarantine | Identified Subatomic Replicator 56773 | -3/Quarantine | Found Alien Artifact 57019 | -3/Quarantine | First assault squad dispatched 57075 | -3/Quarantine | Identified exit to Garrison 57121 | -3/Quarantine | Discovered new exit (range 14) 57136 | -3/Quarantine | Found Alien Artifact 57159 | -3/Quarantine | Garrison activated, responded to threat 57215 | -3/Quarantine | Found Alien Artifact 57270 | -3/Quarantine | Identified Core Reset Matrix 57270 | -3/Quarantine | Identified Phase Redirector 57270 | -3/Quarantine | Identified Terrabomb 57270 | -3/Quarantine | Used Core Reset Matrix 57273 | -3/Quarantine | Found Matter Drive 57274 | -3/Quarantine | Detected hypermatrix surge 57274 | -3/Quarantine | Sensed 13 artifacts in vicinity 57317 | -3/Quarantine | Allied Derelicts emerged from ambush trap array 57707 | -3/Quarantine | Found Sigix Broadsword 57758 | -3/Quarantine | Spotted Alpha 7 57787 | -3/Quarantine | System corruption reached 10% 57840 | -3/Quarantine | Found Sigix Terminator 57843 | -3/Quarantine | Fired Sigix Terminator 57843 | -3/Quarantine | Destroyed Alpha 7 57843 | -3/Quarantine | Cryocooling Duct disabled 57858 | -3/Quarantine | Ambient heat levels rising (+20) 57858 | -3/Quarantine | Non-combat units ordered to evacuate 57864 | -3/Quarantine | Destroyed 7 combat bots 57874 | -3/Quarantine | Lost 17 parts (2p3n6u6w) 57901 | -3/Quarantine | Entered Garrison 58063 | -3/Garrison | Used Subatomic Replicator to replicate Sigix Broadsword 58096 | -3/Garrison | Triggered checkpoint 58123 | -3/Garrison | Build established: Hacker-Mutant 58257 | -3/Garrison | Used Terrabomb 58257 | -3/Garrison | Spotted B-86 Titan 58258 | -3/Garrison | Triggered checkpoint 58260 | -3/Garrison | Triggered checkpoint 58266 | -3/Garrison | Core integrity fell below 50% 58277 | -3/Garrison | Core integrity fell below 20% 58279 | -3/Garrison | Destroyed by B-86 Titan with Hardcell Cannon Last Messages --------------- 58245_ Penetrated by Slug. 58245_ Slug penetrates Wall. 58247_ Acquired Sigix Broadsword. 58248_ Slug penetrates Wall. 58249_ Slammed into H-77 Assassin. 58251_ System corrupted: Matter fused (-8). 58252_ Slug penetrates Wall. 58257_ Terrabomb activated. 58258_ Slug penetrates Wall. 58258_ Slug penetrates Garrison Door. 58258_ Med. Treads destroyed. 58260_ Penetrated by Slug. 58260_ Ghost Barrier destroyed. 58260_ Garrison Door breached. 58260_ Beams of light sweep through the air. An alarm sounds. 58261_ Med. Treads destroyed. 58262_ Reaction Control System destroyed. 58274_ Sigix Broadsword destroyed. 58277_ Slug penetrates Wall. 58277_ Imp. Hacking Suite destroyed. Map ----- +----------------------------------------------------+ | ?????????????????????????????????????????????????? | | ?????????????????????????????????????????????????? | | ?????????????????????????????????????????????????? | | ?????????????????????????????????????????????????? | | ?????????????????????????????????????????????????? | | ?????????????????????????????????????????????????? | | ?????????????????????????????????????????????????? | | ?????????????????????????????????????????????????? | | ?????????????????????????????????????????????????? | | ?????????????????????????????????????????????????? | | ?????????????????????????????????????????????????? | | ?????????????????????????????????????????????????? | | ??????????????????????????????????????????????##?? | | ????????????????????????????????????????###### ##? | | ??????????????????????????????#??????### | | ??????????????????????????????""???### | | ??????????????????????????????? #### | | ???????????????????????????????? " | | ???????????????????????????###?##" " | | ???????????????????????????# ### " ; | | ???????????????????????????# # ; ; | | ???????????????????????????# # ;;; " | | ????????????????????????#### #;; """" | | ????????????????????????#" " + ; | | ?????????????????#########%;#;;; g;; ; | | ?????????????# @ ; ;;; ;;s; | | ?????????????# # ; ;;s; | | ?????????????############ ;;""";; ;;s; | | ????????????????????????# "; ; % """"" | | ????????????????????????# ;;;;"""""" " " | | ????????????????????????# ; ; ; " " " | | ????????????????????????# ; ;s; " " " "" | | ????????????????????????# ; ;s; " " " " | | ????????????????????????# ;;;; ; ; " " " | | ????????????????????????# # ; ; " " "" | | ????????????????????????# ;;;; ; ; " " " | | ????????????????????????# ; ; ; ; """""""" "" | | ????????????????????????# ; ; ; " "" "" " | | ????????????????????????? ; ; ; """/"" "" "" | | ????????????????????????? ;?;"#""" " | | ????????????????????????? ??? # | | ???????????????????????????????? " | | ??????????????????????????????????" "" "" " | | ??????????????????????????????????" "" "" " | | ??????????????????????????????????? " | | ????????????????????????????????????? " | | ??????????????????????????????????????? " | | ?????????????????????????????????????????? " | | ????????????????????????????????????????????"" ? | | ?????????????????????????????????????????????????? | +----------------------------------------------------+ Best States ------------- Heat Dissipation 97 Energy Generation 45 Energy Capacity 600 Matter Stores 300 Matter Capacity 300 Sight Range 16 Robot Scan Range 18 Terrain Scan Density 10 ECM Strength 2 Additional Mass Support 12 EM Shielding 2 Armor Coverage 1600 Resistance: KI 30 Resistance: EX 25 Resistance: EM 90 Core Shielding 20 Propulsion Shielding 66 Utility Shielding 33 Weapon Shielding 100 Weapon Cycling 20 Evasion (%) 58 Targeting Accuracy 8 Target Analysis 5 Recoil Reduction 6 Kinecelleration 40 Salvage Targeting 5 Offensive Hacking 45 Defensive Hacking 20 Relay Coupler Types 1 Relay Coupler Value 24 Item Schematics ----------------- Exp. Weapon Shielding | -3/Quarantine | Archive Cld. Antimatter Reactor | -3/Quarantine | Archive Robot Schematics ------------------ None Fabricated ------------ Combat Drone Bay | x1 | -5/Factory Alien Tech Used ----------------- Subatomic Replicator Core Reset Matrix Matter Drive Sigix Broadsword Sigix Terminator Terrabomb Achievements -------------- Hard Hitter Challenges ------------ None Game ------ Seed NeutrinoShockPick Manual? 0 Play Time 06:13:10 Cumulative 359.7 hours Start 2022.05.05 @ 09:31:07 End 2022.05.06 @ 17:35:27 Sessions 7 Manual Loads 0 Difficulty Rogue Special Mode None Game No. 154 Rogue 154 Adventurer 0 Explorer 0 Win Type - Total 7 Types 3/1/0/1/2/0/0/0/0 Lore% 66 Gallery% 80 Achievement% 70 Wizard Run 0 Options --------- ASCII 0 Keyboard 0 Movement Arrows Keybinds 0 Fullscreen 0 Font 28/SmallcapsGlow Map View 72x54 Tactical HUD 1 Map Filters NONE Filters NONE Steam 1 RUN: 438f1bc3-7ed9-496f-a728-0cdfade4c602